{"text_format":"1","workbook":"xlsx","n_sheets":4,"sheets":["Introduction","Summary","Dept Comp and Analysis","FY13 Course Sort and Review"],"not_rendered":{"charts":0,"images":0,"macros":1,"external_links":0,"defined_names":1,"comments":0,"pivot_tables":3},"unopened":[],"bounds":{"document_bytes":16777216,"sheet_cells":100000,"rows_first":2000,"rows_last":500,"rows_between":2000,"halvings":0,"cell_chars":16384,"cell_head_chars":4096},"cells_cut":0,"cells_raw":0,"read":"whole","date_system":"1900"}

{"sheet":"Introduction","index":0,"n_rows":41,"n_cols":5,"rows_kept":41,"cut":false,"hidden":false,"merged":[[2,4,2,13],[8,4,9,13],[12,4,13,13],[22,4,23,13],[26,4,27,13],[40,4,41,13],[28,4,29,13],[16,4,17,13],[20,4,21,13],[37,4,38,13],[31,4,33,13],[35,4,36,13]]}
[]
[]
[null,null,null,null,"What's on the spreadsheet?"]
[]
[null,null,null,null,"Summary Tab"]
[null,null,null,null,"This tab contains an overview of the information corresponding to sustainability courses offered at OSU."]
[]
[null,null,null,null,"Table 1. Departments with Sustainability Courses"]
[null,null,null,null,"This table lists the academic departments that offer Sustainability Courses and courses with sustainability content. The specific courses offered by each department can be seen by clicking on each row on the table."]
[]
[]
[null,null,null,null,"Table 2. Sustainability Courses by course level"]
[null,null,null,null,"This table lists the Sustainability Courses divided by course level. The specific Sustainability Courses offered at each level can be seen by clicking on each row on the table."]
[]
[]
[null,null,null,null,"Table 3. Courses with sustainability content by course level"]
[null,null,null,null,"This table lists the courses with sustainability content divided by course level. The specific courses with sustainability content offered at each level can be seen by clicking on each row on the table."]
[]
[]
[null,null,null,null,"Dept Comp and Analysis Tab"]
[null,null,null,null,"This tab contains the classification of course prefixes (or subjects) based on two sources: the online OSU course catalog and the list provided by institutional research."]
[]
[null,null,null,null,"The third column in each table cross-references the courses in both lists and indicates the courses that are not found on the opposite list."]
[]
[]
[null,null,null,null,"FY13 Course Sort and Review"]
[null,null,null,null,"This tab contains the details of the Sustainability courses offered at OSU."]
[]
[null,null,null,null,"Items with a red background identify Sustainability Courses which is defined below.\nItems with a green background identify courses with Sustainability Content which is defined below."]
[]
[]
[null,null,null,null,"Sustainability courses concentrate on the concept of sustainability consistently throughout the entire course.  This includes connections between environmental, social, and economic dimensions.  It also examines an issue or topic using sustainability as a lens."]
[]
[]
[]
[null,null,null,null,"Courses with sustainability content incorporate sustainability as a distinct course component or module, or concentrate on a single sustainability principle or issue. "]
[]
[null,null,null,null,"Course descriptions and syllabi are available by clicking on the title of each course (Column J)"]
[]
[]
[null,null,null,null,"Course numbers between 100 and 400 are undergraduate courses.  Course numbers 500 and above are graduate courses. (Column A)"]

{"sheet":"Summary","index":1,"n_rows":47,"n_cols":9,"rows_kept":47,"cut":false,"hidden":false,"merged":[[10,1,10,2],[10,4,10,5],[10,7,10,8]]}
[]
[null,"Total Academic Departments at OSU",59,null,"Total Courses at OSU ",1412]
[null,null,null,null,"Total Undergraduate Courses",840]
[null,null,null,null,"Total Graduate Courses",572]
[]
[null,"Academic Departments offering courses with Sustainability Criteria",33,null,"Courses with Sustainability Criteria",276]
[]
[]
[]
[]
[null,"Table 1. Departments with Sustainability Courses",null,null,"Table 2. Sustainability Focused courses by course level",null,null,"Table 3. Sustainability Related courses by course level"]
[]
[null,"Row Labels","Count of Title",null,"Type of Sustainability Course","Sustainability Course",null,"Type of Sustainability Course","Sustainability Content in Course"]
[null,"School of Lang, Cult and Soc",61]
[null,"Applied Economics",25,null,"Row Labels","Count of Title",null,"Row Labels","Count of Title"]
[null,"Forest Ecosystems & Society",23,null,"Graduate",44,null,"Graduate",63]
[null,"Horticulture",20,null,"Undergraduate",69,null,"Undergraduate",100]
[null,"Wood Science and Engineering",17,null,"Grand Total",113,null,"Grand Total",163]
[null,"School of Public Policy",16]
[null,"School Soc. & Behav. Science",15]
[null,"School of Mech, Ind, Manf Engr",12]
[null,"School of Hist, Phil, and Rel.",10]
[null,"School of Chem, Bio, Enviro En",9]
[null,"School of Psy Sci",7]
[null,"Forest Resources",7]
[null,"Crop & Soil Science",6]
[null,"Oceanography",6]
[null,"Entomology",5]
[null,"Business Administration",5]
[null,"Fisheries & Wildlife",4]
[null,"Forest Engr, Resources & Mgmt",4]
[null,"Natural Resources",3]
[null,"Biology",3]
[null,"Biological & Ecological Engr",2]
[null,"Chemistry",2]
[null,"Bioresource Research",2]
[null,"School of Design and Hum Env",2]
[null,"Interdisciplinary Studies",2]
[null,"Zoology",1]
[null,"Environ & Molecular Toxicology",1]
[null,"School of Arts and Comm",1]
[null,"Geosciences",1]
[null,"Microbiology",1]
[null,"Engineering Science",1]
[null,"Molecular & Cellular Biology",1]
[null,"Pharmacy",1]
[null,"Grand Total",276]

{"sheet":"Dept Comp and Analysis","index":2,"n_rows":140,"n_cols":8,"rows_kept":140,"cut":false,"hidden":false,"merged":[[1,5,1,7],[1,1,1,3]]}
[]
[null," Table 4. Online Course Catalog",null,null,null,"Table 5. Institutional Research"]
[]
[null,"Course Prefix","Department it belongs to","Is it on Terence List?",null,"Course Prefix","Department it belongs to","Is it listed on the course catalog online?"]
[null,"ACTG","Business ","YES",null,"ACTG","Business Administration","YES"]
[null,"AEC","Agricultural and Resource Economics","YES",null,"AEC","Applied Economics","YES"]
[null,"AED","Agricultural Education and Agricultural Sciences","YES",null,"AED","Agricultural Education","YES"]
[null,"AG","Agricultural Education and Agricultural Sciences","YES",null,"AG","Agricultural Education","YES"]
[null,"AHE","Education","YES",null,"AHE","Adult Ed & Higher Ed Leadershp","YES"]
[null,"AMS","History, Philosophy & Religion","YES",null,"AMS","American Studies Program","YES"]
[null,"ANS","Animal and Rangeland Sciences","YES",null,"ANS","Animal and Rangeland Sci","YES"]
[null,"ANTH","History, Philosophy & Religion","YES",null,"ANTH","School of Lang, Cult and Soc","YES"]
[null,"ARAB","Language, Culture & Society","YES",null,"ARAB","School of Lang, Cult and Soc","YES"]
[null,"AREC","Agricultural and Resource Economics","YES",null,"AREC","Applied Economics","YES"]
[null,"ART","History, Philosophy & Religion","YES",null,"ART","School of Arts and Comm","YES"]
[null,"ASL","Language, Culture & Society","YES",null,"ASL","School of Lang, Cult and Soc","YES"]
[null,"ATS","EOAS","YES",null,"ATS","Oceanography","YES"]
[null,"BA","Business ","YES",null,"BA","Business Administration","YES"]
[null,"BB","Biochemistry and Biophysics","YES",null,"BB","Biochemistry & Biophysics","YES"]
[null,"BEE","Biological & Ecological Engineering","YES",null,"BEE","Biological & Ecological Engr","YES"]
[null,"BI","Microbiology","YES",null,"BI","Biology","YES"]
[null,"BIOE","Biological & Ecological Engineering","YES",null,"BIOE","School of Chem, Bio, Enviro En","YES"]
[null,"BOT","Botany and Plant Pathology","YES",null,"BOT","Botany & Plant Pathology","YES"]
[null,"BRR","Agricultural Education and Agricultural Sciences","YES",null,"BRR","Bioresource Research","YES"]
[null,"CBEE","Chemical, Biological and Environmental Engineering","YES",null,"CBEE","School of Chem, Bio, Enviro En","YES"]
[null,"CCE","Civil and Construction Engineering","YES",null,"CCE","School of Civl & Constr Engr","YES"]
[null,"CE","Civil and Construction Engineering","YES",null,"CE","School of Civl & Constr Engr","YES"]
[null,"CEM","Civil and Construction Engineering","YES",null,"CEM","School of Civl & Constr Engr","YES"]
[null,"CH","Chemistry","YES",null,"CH","Chemistry","YES"]
[null,"CHE","Chemical, Biological and Environmental Engineering","YES",null,"CHE","School of Chem, Bio, Enviro En","YES"]
[null,"CHN","Language, Culture & Society","YES",null,"CHN","School of Lang, Cult and Soc","YES"]
[null,"COMM","Writing, Literature, and Film","YES",null,"COMM","School of Arts and Comm","YES"]
[null,"CROP","Crop and Soil Science","YES",null,"CROP","Crop & Soil Science","YES"]
[null,"CS","Electrical Engineering and Computer Science","YES",null,"CS","Electrical & Computer Engring","YES"]
[null,"CSS","Crop and Soil Science","YES",null,"CS","School of Electrical & Compute","YES"]
[null,"DHE","Design and Human Environment ","YES",null,"CSS","Crop & Soil Science","YES"]
[null,"ECE","Electrical Engineering and Computer Science","YES",null,"DHE","School of Design and Hum Env","YES"]
[null,"EECS","Electrical Engineering and Computer Science","YES",null,"ECE","School of Electrical & Compute","YES"]
[null,"ENG","Language, Culture & Society","YES",null,"EECS","School of Electrical & Compute","YES"]
[null,"ENGR","Mechanical, Industrial and Manufacturing Engineering","YES",null,"ENG","School of Writing, Lit and Flm","YES"]
[null,"ENSC","EOAS","YES",null,"ENGR","Engineering Science","YES"]
[null,"ENT","Botany and Plant Pathology","YES",null,"ENSC","Graduate School","YES"]
[null,"ENVE","Chemical, Biological and Environmental Engineering","YES",null,"ENSC","Environmental Sciences","YES"]
[null,"ES","History, Philosophy & Religion","YES",null,"ENT","Entomology","YES"]
[null,"EXSS","Biological and Population Health Sciences","YES",null,"ENVE","School of Chem, Bio, Enviro En","YES"]
[null,"FE","Forest Engineering, Resources & Management","YES",null,"ES","School of Lang, Cult and Soc","YES"]
[null,"FES","Forest Ecosystems and Society","YES",null,"EXSS","School Bio. & Pop. Health Sci.","YES"]
[null,"FILM","Writing, Literature, and Film","YES",null,"FE","Forest Engr, Resources & Mgmt","YES"]
[null,"FIN","Business ","YES",null,"FES","Forest Ecosystems & Society","YES"]
[null,"FLL","Language, Culture & Society","YES",null,"FILM","School of Writing, Lit and Flm","YES"]
[null,"FOR","Forest Engineering, Resources & Management","YES",null,"FIN","Business Administration","YES"]
[null,"FR","Language, Culture & Society","YES",null,"FLL","School of Lang, Cult and Soc","YES"]
[null,"FS","Forest Ecosystems and Society","YES",null,"FOR","Forest Engr, Resources & Mgmt","YES"]
[null,"FST","Food Science and Technology","YES",null,"FOR","Forest Ecosystems & Society","YES"]
[null,"FW","Fisheries and Wildlife","YES",null,"FOR","Forest Resources","YES"]
[null,"GD","Business ","YES",null,"FR","School of Lang, Cult and Soc","YES"]
[null,"GEO","EOAS","YES",null,"FS","Forest Ecosystems & Society","YES"]
[null,"GER","Language, Culture & Society","YES",null,"FST","Food Science & Technology","YES"]
[null,"GPH","EOAS","YES",null,"FW","Fisheries & Wildlife","YES"]
[null,"GS","Biochemistry and Biophysics","YES",null,"GD","School of Design and Hum Env","YES"]
[null,"H","Social and Behavioral Health Sciences","YES",null,"GEO","Geosciences","YES"]
[null,"HDFS","Social and Behavioral Health Sciences","YES",null,"GER","School of Lang, Cult and Soc","YES"]
[null,"HEBR","Language, Culture & Society","YES",null,"GPH","Oceanography","YES"]
[null,"HHS","Social and Behavioral Health Sciences","YES",null,"GS","General Science","YES"]
[null,"HORT","Horticulture","YES",null,"H","School Soc. & Behav. Science","YES"]
[null,"HST","History, Philosophy & Religion","YES",null,"HDFS","School Soc. & Behav. Science","YES"]
[null,"HST","History, Philosophy & Religion","YES",null,"HEBR","School of Lang, Cult and Soc","YES"]
[null,"HSTS","History, Philosophy & Religion","YES",null,"HHS","School Bio. & Pop. Health Sci.","YES"]
[null,"IE","Mechanical, Industrial and Manufacturing Engineering","YES",null,"HORT","Horticulture","YES"]
[null,"IT","Language, Culture & Society","YES",null,"HST","School of Hist, Phil, and Rel.","YES"]
[null,"JPN","Language, Culture & Society","YES",null,"HSTS","School of Hist, Phil, and Rel.","YES"]
[null,"LING","Language, Culture & Society","YES",null,"IE","School of Mech, Ind, Manf Engr","YES"]
[null,"LS","History, Philosophy & Religion","YES",null,"IT","School of Lang, Cult and Soc","YES"]
[null,"MATS","Mechanical, Industrial and Manufacturing Engineering","YES",null,"JPN","School of Lang, Cult and Soc","YES"]
[null,"MB","Microbiology","YES",null,"LING","School of Lang, Cult and Soc","YES"]
[null,"ME","Mechanical, Industrial and Manufacturing Engineering","YES",null,"LS","Liberal Studies","YES"]
[null,"MFGE","Mechanical, Industrial and Manufacturing Engineering","YES",null,"MATS","School of Mech, Ind, Manf Engr","YES"]
[null,"MGMT","Business ","YES",null,"MB","Microbiology","YES"]
[null,"MNR","Forest Ecosystems and Society","YES",null,"ME","School of Mech, Ind, Manf Engr","YES"]
[null,"MPP","Public Policy","YES",null,"MFGE","School of Mech, Ind, Manf Engr","YES"]
[null,"MRKT","Business ","YES",null,"MGMT","Business Administration","YES"]
[null,"MRM","EOAS","YES",null,"MNR","Forest Ecosystems & Society","YES"]
[null,"MTH","Mathematics","YES",null,"MPP","School of Public Policy","YES"]
[null,"MUED","Writing, Literature, and Film","YES",null,"MRKT","Business Administration","YES"]
[null,"MUP","Writing, Literature, and Film","YES",null,"MRM","Oceanography","YES"]
[null,"MUS","Writing, Literature, and Film","YES",null,"MTH","Mathematics","YES"]
[null,"NE","Nuclear Engineering and Radiation Health Physics","YES",null,"MUED","School of Arts and Comm","YES"]
[null,"NMC","Writing, Literature, and Film","YES",null,"MUP","School of Arts and Comm","YES"]
[null,"NR","Forest Ecosystems and Society","YES",null,"MUS","School of Arts and Comm","YES"]
[null,"NUTR","Biological and Population Health Sciences","YES",null,"NE","Nuclear Engineering & RHP","YES"]
[null,"OC","EOAS","YES",null,"NMC","School of Arts and Comm","YES"]
[null,"OEAS","EOAS","YES",null,"NR","Natural Resources","YES"]
[null,"PAC","Biological and Population Health Sciences","YES",null,"NUTR","School Bio. & Pop. Health Sci.","YES"]
[null,"PAX","History, Philosophy & Religion","YES",null,"OC","Oceanography","YES"]
[null,"PBG","Crop and Soil Science","YES",null,"OEAS","Oceanography","YES"]
[null,"PH","Physics","YES",null,"PAC","School Bio. & Pop. Health Sci.","YES"]
[null,"PHAR","Pharmacy","YES",null,"PAC","School Soc. & Behav. Science","YES"]
[null,"PHL","History, Philosophy & Religion","YES",null,"PAX","School of Hist, Phil, and Rel.","YES"]
[null,"PPOL","Public Policy","YES",null,"PBG","Horticulture","YES"]
[null,"PS","Public Policy","YES",null,"PH","Physics","YES"]
[null,"PSY","History, Philosophy & Religion","YES",null,"PHAR","Pharmacy","YES"]
[null,"QS","Language, Culture & Society","YES",null,"PHL","School of Hist, Phil, and Rel.","YES"]
[null,"RHP","Nuclear Engineering and Radiation Health Physics","YES",null,"PPOL","School of Public Policy","YES"]
[null,"RNG","Animal and Rangeland Sciences","YES",null,"PS","Political Science","YES"]
[null,"RS","Agricultural Education and Agricultural Sciences","YES",null,"PS","School of Public Policy","YES"]
[null,"RUS","Language, Culture & Society","YES",null,"PSY","School of Psy Sci","YES"]
[null,"SED","Education","YES",null,"QS","School of Lang, Cult and Soc","YES"]
[null,"SNR","Forest Engineering, Resources & Management","YES",null,"RHP","Nuclear Engineering & RHP","YES"]
[null,"SOC","History, Philosophy & Religion","YES",null,"RNG","Animal and Rangeland Sci","YES"]
[null,"SOIL","Crop and Soil Science","YES",null,"RS","Applied Economics","YES"]
[null,"SPAN","Language, Culture & Society","YES",null,"RUS","School of Lang, Cult and Soc","YES"]
[null,"ST","Statistics","YES",null,"SED","Science and Math Education","YES"]
[null,"SUS","Horticulture","YES",null,"SNR","Forest Ecosystems & Society","YES"]
[null,"TA","Writing, Literature, and Film","YES",null,"SOC","School of Public Policy","YES"]
[null,"TCE","Education","YES",null,"SOIL","Crop & Soil Science","YES"]
[null,"TCS","Language, Culture & Society","YES",null,"SPAN","School of Lang, Cult and Soc","YES"]
[null,"TOX","Environmental and Molecular Toxicology","YES",null,"ST","Statistics","YES"]
[null,"VMB","Biomedical Sciences","YES",null,"SUS","Forest Ecosystems & Society","YES"]
[null,"VMC","Clinical Sciences","YES",null,"TA","School of Arts and Comm","YES"]
[null,"WGSS","Language, Culture & Society","YES",null,"TCE","Teacher & Counselor Education","YES"]
[null,"WR","Language, Culture & Society","YES",null,"TCS","School of Hist, Phil, and Rel.","YES"]
[null,"WSE","Wood Science and Engineering","YES",null,"TOX","Environ & Molecular Toxicology","YES"]
[null,"Z","Zoology","YES",null,"VMB","Biomedical Sciences","YES"]
[null,"AGRI","Agricultural Education and Agricultural Sciences","Not listed on TMs list",null,"VMC","Clinical Sciences","YES"]
[null,"AROTC","Education",null,null,"WGSS","School of Lang, Cult and Soc","YES"]
[null,"AS","Education",null,null,"WR","School of Writing, Lit and Flm","YES"]
[null,"ASN","Language, Culture & Society",null,null,"WSE","Wood Science and Engineering","YES"]
[null,"DCH","Language, Culture & Society",null,null,"Z","Zoology","YES"]
[null,"ESE","Mechanical, Industrial and Manufacturing Engineering",null,null,"EAR","Oceanography","Not listed in Course Catalog"]
[null,"KOR","Language, Culture & Society",null,null,"ECON","Economics"]
[null,"LA","History, Philosophy & Religion",null,null,"ECON","School of Public Policy"]
[null,"LAT","Language, Culture & Society",null,null,"GRAD","Interdisciplinary Studies"]
[null,"MS","Education",null,null,"IST","Interdisciplinary Studies"]
[null,"NROTC","Education",null,null,"MCB","Molecular & Cellular Biology"]
[null,"NS","Education",null,null,"MIME","School of Mech, Ind, Manf Engr"]
[null,"REL","History, Philosophy & Religion",null,null,"MP","Nuclear Engineering & RHP"]
[null,"ROB","Mechanical, Industrial and Manufacturing Engineering",null,null,"PSM","Interdisciplinary Studies"]
[null,"TOL","Forest Ecosystems and Society",null,null,"WRE","Graduate School"]
[null,"WLC","Language, Culture & Society",null,null,"WRP","Graduate School"]
[null,"YDE","Social and Behavioral Health Sciences",null,null,"WRS","Graduate School"]

{"sheet":"FY13 Course Sort and Review","index":3,"n_rows":277,"n_cols":19,"rows_kept":277,"cut":false,"hidden":false,"merged":[]}
["Number","ColorSort","Type of Sustainability Course","Dept Sort (Me)","Dept Sort (List)","Dept Sort (Combined)","Dept","Course Level","Dept and Course Number","Title","Date","Change/New","College",null,"Calculations"]
[605,0,"Sustainability Course","Wood Science and Engineering","Wood Science and Engineering","Wood Science and Engineering","WSE","Undergraduate","WSE 482","WS 482/WS 582 GLOBAL PERSPECTIVES ON WOMEN'S HEALTH","2012-07-06","Change Course","Winter 2013",null,{"$f":"RIGHT(I2,4)","v":" 482"},{"$f":"LEFT(O2,2)","v":" 4"},{"$f":"IF(LEFT(P2,1)=\"/\", \"Both\",IF(VALUE(RIGHT(P2,1))>4,\"Graduate\",\"Undergraduate\"))","v":"Undergraduate"},{"$f":"LEFT(I2,LEN(I2)-4)","v":"WSE"},"WSE 482"]
[244,0,"Sustainability Course","Wood Science and Engineering","Wood Science and Engineering","Wood Science and Engineering","WSE","Undergraduate","WSE 475","WSE 475/WSE 575 ENVIRO ASSESS BUILD MATERIALS","2012-11-30","Change Course","Winter 2013",null," 475"," 4","Undergraduate",{"$f":"LEFT(I3,LEN(I3)-4)","v":"WSE"},"WSE 475"]
[447,0,"Sustainability Course","Wood Science and Engineering","Wood Science and Engineering","Wood Science and Engineering","WSE","Undergraduate","WSE 473","WSE 473/WSE 573 BIOENERGY AND ENVIRONMENT IMPACT","2012-08-08","Change Course","Spring 2013",null," 473"," 4","Undergraduate","WSE","WSE 473"]
[545,0,"Sustainability Course","Wood Science and Engineering","Wood Science and Engineering","Wood Science and Engineering","WSE","Undergraduate","WSE 462","WSE 462/WSE 562 MFG WITH RENEW MATLS II","2012-04-26","Change Course","Fall 2012",null," 462"," 4","Undergraduate","WSE","WSE 462"]
[207,0,"Sustainability Course","Wood Science and Engineering","Wood Science and Engineering","Wood Science and Engineering","WSE","Undergraduate","WSE 453","WSE 453/WSE 553 GLOBAL TRADE IN RENEWABLE MATERIALS","2013-05-13","Change Course","Fall 2013",null," 453"," 4","Undergraduate","WSE","WSE 453"]
[160,0,"Sustainability Course","Wood Science and Engineering","Wood Science and Engineering","Wood Science and Engineering","WSE","Undergraduate","WSE 415","WSE 415/515 RENEWABLE MATERIALS IN THE MODERN AGE","2013-03-20","New Course","Fall 2013",null," 415"," 4","Undergraduate","WSE","WSE 415"]
[379,0,"Sustainability Content in Course","Language, Culture & Society",null,"School of Lang, Cult and Soc","WS","Undergraduate","WS 496","WS 496/WS 596 FEMINIST THEOLOGIES IN THE UNITED STATES","2012-08-08","New Course","Spring 2013",null," 496"," 4","Undergraduate","WS","WS 496"]
[439,0,"Sustainability Content in Course","Language, Culture & Society",null,"School of Lang, Cult and Soc","WS","Undergraduate","WS 495","WS 495/WS 595 GLOBAL FEMINIST THEOLOGIES","2012-06-21","Change Course","Fall 2012",null," 495"," 4","Undergraduate","WS","WS 495"]
[557,0,"Sustainability Content in Course","Language, Culture & Society",null,"School of Lang, Cult and Soc","WS","Undergraduate","WS 487","WS 487/WS 587 GLOBAL EXPERIENCE II","2011-06-10","New Course","Fall 2011",null," 487"," 4","Undergraduate","WS","WS 487"]
[558,0,"Sustainability Content in Course","Language, Culture & Society",null,"School of Lang, Cult and Soc","WS","Undergraduate","WS 486","WS 486/WS 586 GLOBAL EXPERIENCE I","2011-06-10","New Course","Fall 2011",null," 486"," 4","Undergraduate","WS","WS 486"]
[255,0,"Sustainability Content in Course","History, Philosophy & Religion","School of Hist, Phil, and Rel.","School of Hist, Phil, and Rel.","HSTS","Undergraduate","WS 466","FAT STUDIES","2012-10-30","Change Course","College of Liberal Arts",null," 466"," 4","Undergraduate","WS","WS 466"]
[606,0,"Sustainability Course","Language, Culture & Society",null,"School of Lang, Cult and Soc","WS","Undergraduate","WS 466","WS 466/WS 566 FAT STUDIES","2010-11-08","New Course","Spring 2011",null," 466"," 4","Undergraduate","WS","WS 466"]
[589,0,"Sustainability Course","Language, Culture & Society",null,"School of Lang, Cult and Soc","WS","Undergraduate","WS 462","WS 462/WS 562 INTRODUCTION TO QUEER STUDIES","2011-12-01","New Course","Fall 2011",null," 462"," 4","Undergraduate","WS","WS 462"]
[669,0,"Sustainability Content in Course","Language, Culture & Society","School of Lang, Cult and Soc","School of Lang, Cult and Soc","SPAN","Undergraduate","SPAN 435","SPAN 435/535 SELECTED TOPICS IN LATIN AMERICAN CULTURE","2010-04-21","New Course","Summer 2010",null," 435"," 4","Undergraduate","SPAN","SPAN 435"]
[871,0,"Sustainability Content in Course","History, Philosophy & Religion","School of Public Policy","School of Public Policy","SOC","Undergraduate","SOC 460","SOC 460/SOC 560 THE SOCIOLOGY OF GLOBALIZATION","2010-11-05","Change Course","Winter 2011",null," 460"," 4","Undergraduate","SOC","SOC 460"]
[48,0,"Sustainability Content in Course","Agricultural Education and Agricultural Sciences","Applied Economics","Applied Economics","RS","Undergraduate","RS 421","RS 421/RS 521 ECONOMICS OF RURAL POVERTY AND THE U.S. SOCIAL SAFETY NET","2013-09-10","Change Course","Spring 2014",null," 421"," 4","Undergraduate","RS","RS 421"]
[310,0,"Sustainability Content in Course","Language, Culture & Society","School of Lang, Cult and Soc","School of Lang, Cult and Soc","QS","Undergraduate","QS 499","SPECIAL TOPICS IN QUEER STUDIES","2012-12-01","New Course","College of Liberal Arts",null," 499"," 4","Undergraduate","QS","QS 499"]
[38,0,"Sustainability Content in Course","Language, Culture & Society","School of Lang, Cult and Soc","School of Lang, Cult and Soc","QS","Undergraduate","QS 473","QS 473/QS 573 TRANSGENDER LIVES","2013-09-09","New Course","Winter 2014",null," 473"," 4","Undergraduate","QS","QS 473"]
[207,0,"Sustainability Content in Course","Language, Culture & Society","School of Lang, Cult and Soc","School of Lang, Cult and Soc","QS","Undergraduate","QS 472","QS 472/QS 572 INDIGENOUS TWO-SPIRIT AND QUEER STUDIES","2013-06-25","New Course","Winter 2014",null," 472"," 4","Undergraduate","QS","QS 472"]
[15,0,"Sustainability Course","Language, Culture & Society","School of Lang, Cult and Soc","School of Lang, Cult and Soc","QS","Undergraduate","QS 462","QS 462/QS 562 QUEER THEORIES","2013-11-26","Change Course","Winter 2014",null," 462"," 4","Undergraduate","QS","QS 462"]
[204,0,"Sustainability Content in Course","Language, Culture & Society","School of Lang, Cult and Soc","School of Lang, Cult and Soc","QS","Undergraduate","QS 431","QS 431/QS 531 QUEER OF COLOR CRITIQUES","2013-05-15","New Course","Winter 2014",null," 431"," 4","Undergraduate","QS","QS 431"]
[192,0,"Sustainability Course","History, Philosophy & Religion","School of Psy Sci","School of Psy Sci","PSY","Undergraduate","PSY 466","PSY 466/PSY 566 FAT STUDIES","2012-12-06","New Course","Spring 2013",null," 466"," 4","Undergraduate","PSY","PSY 466"]
[641,0,"Sustainability Content in Course","History, Philosophy & Religion","School of Psy Sci","School of Psy Sci","PSY","Undergraduate","PSY 426","PSY 426/PSY 526 PSYCHOLOGY OF GENDER","2012-02-01","Change Course","Spring 2012",null," 426"," 4","Undergraduate","PSY","PSY 426"]
[378,0,"Sustainability Content in Course","Public Policy","School of Public Policy","School of Public Policy","PS","Undergraduate","PS 473","PS 473/PS 573 US ENERGY POLICY","2012-11-01","New Course","Winter 2013",null," 473"," 4","Undergraduate","PS","PS 473"]
[199,0,"Sustainability Content in Course","Public Policy","School of Public Policy","School of Public Policy","PS","Undergraduate","PS 473","US ENERGY POLICY","2012-11-01","New Course","College of Liberal Arts",null," 473"," 4","Undergraduate","PS","PS 473"]
[408,0,"Sustainability Course","Public Policy","School of Public Policy","School of Public Policy","PS","Undergraduate","PS 455","PS 455/PS 555 THE POLITICS OF CLIMATE CHANGE","2012-04-25","New Course","Fall 2012",null," 455"," 4","Undergraduate","PS","PS 455"]
[399,0,"Sustainability Content in Course","Public Policy","School of Public Policy","School of Public Policy","PS","Undergraduate","PS 455","THE POLITICS OF CLIMATE CHANGE","2012-04-25","New Course","College of Liberal Arts",null," 455"," 4","Undergraduate","PS","PS 455"]
[377,0,"Sustainability Content in Course","Forest Ecosystems and Society","Natural Resources","Natural Resources","NR","Undergraduate","NR 477","AGROFORESTRY","2011-05-12","New Course","College of Forestry",null," 477"," 4","Undergraduate","NR","NR 477"]
[99,0,"Sustainability Content in Course","Mechanical, Industrial and Manufacturing Engineering","School of Mech, Ind, Manf Engr","School of Mech, Ind, Manf Engr","MFGE","Undergraduate","MFGE 438","COMPOSITES MANUFACTURING","2012-06-01","New Course","College of Engineering",null," 438"," 4","Undergraduate","MFGE","MFGE 438"]
[100,0,"Sustainability Content in Course","Mechanical, Industrial and Manufacturing Engineering","School of Mech, Ind, Manf Engr","School of Mech, Ind, Manf Engr","MFGE","Undergraduate","MFGE 436","LEAN MANUFACTURING SYSTEMS ENGINEERING","2012-08-21","Change Course","College of Engineering",null," 436"," 4","Undergraduate","MFGE","MFGE 436"]
[8,0,"Sustainability Course","History, Philosophy & Religion","School of Hist, Phil, and Rel.","School of Hist, Phil, and Rel.","HSTS","Undergraduate","HSTS 437","HISTORY OF ANIMALS IN SCIENCE","2010-08-11","New Course","College of Liberal Arts",null," 437"," 4","Undergraduate","HSTS","HSTS 437"]
[443,0,"Sustainability Content in Course","Horticulture","Horticulture","Horticulture","HORT","Undergraduate","HORT 455","URBAN FOREST PLANNING, POLICY AND MANAGEMENT","2012-06-26","Change Course","College of Agricultural Sciences",null," 455"," 4","Undergraduate","HORT","HORT 455"]
[158,0,"Sustainability Content in Course","Horticulture","Horticulture","Horticulture","HORT","Undergraduate","HORT 447","ARBORICULTURE","2013-09-04","Change Course","College of Agricultural Sciences",null," 447"," 4","Undergraduate","HORT","HORT 447"]
[894,0,"Sustainability Course","Social and Behavioral Health Sciences","School Soc. & Behav. Science","School Soc. & Behav. Science","H","Undergraduate","H 448","ENVIRONMENTAL & OCCUPATIONAL TOXICOLOGY & RISK ASSESSMENT","2012-08-22","Change Course","College of Public Health and Human Sciences",null," 448"," 4","Undergraduate","H","H 448"]
[60,0,"Sustainability Content in Course","Forest Engineering, Resources & Management","Forest Resources","Forest Resources","FOR","Undergraduate","FOR 455","URBAN FOREST PLANNING, POLICY AND MANAGEMENT","2012-09-05","Change Course","College of Forestry",null," 455"," 4","Undergraduate","FOR","FOR 455"]
[265,0,"Sustainability Content in Course","Forest Ecosystems and Society","Forest Ecosystems & Society","Forest Ecosystems & Society","FES","Graduate","FES 585","CONSENSUS AND NATURAL RESOURCES","2013-11-18","Change Course","College of Forestry",null," 585"," 5","Graduate","FES","FES 585"]
[190,0,"Sustainability Content in Course","Forest Engineering, Resources & Management","Forest Engr, Resources & Mgmt","Forest Engr, Resources & Mgmt","FE","Undergraduate","FE 460","FOREST OPERATIONS REGULATIONS AND POLICY ISSUES","2013-06-19","Change Course","College of Forestry",null," 460"," 4","Undergraduate","FE","FE 460"]
[456,0,"Sustainability Content in Course","History, Philosophy & Religion","School of Lang, Cult and Soc","School of Lang, Cult and Soc","ES","Undergraduate","ES 472","ES 472/ES 572 INDIGENOUS TWO-SPIRIT AND QUEER STUDIES","2013-08-09","New Course","College of Liberal Arts",null," 472"," 4","Undergraduate","ES","ES 472"]
[438,0,"Sustainability Content in Course","History, Philosophy & Religion","School of Lang, Cult and Soc","School of Lang, Cult and Soc","ES","Undergraduate","ES 431","QUEER OF COLOR CRITIQUES","2013-07-19","New Course","College of Liberal Arts",null," 431"," 4","Undergraduate","ES","ES 431"]
[799,0,"Sustainability Content in Course","Botany and Plant Pathology","Entomology","Entomology","ENT","Undergraduate","ENT 440","ISSUES IN INSECT TOXICOLOGY","2012-07-27","New Course","College of Agricultural Sciences",null," 440"," 4","Undergraduate","ENT","ENT 440"]
[674,0,"Sustainability Course","Public Policy","School of Public Policy","School of Public Policy","ECON","Undergraduate","ECON 466","ENERGY ECONOMICS","2012-05-23","New Course","College of Liberal Arts",null," 466"," 4","Undergraduate","ECON","ECON 466"]
[139,0,"Sustainability Course","Public Policy","School of Public Policy","School of Public Policy","ECON","Undergraduate","ECON 440","ECONOMICS OF GLOBALIZATION","2010-07-19","Change Course","College of Liberal Arts",null," 440"," 4","Undergraduate","ECON","ECON 440"]
[316,0,"Sustainability Course","Design and Human Environment ","School of Design and Hum Env","School of Design and Hum Env","DHE","Undergraduate","DHE 415","RENEWABLE MATERIALS IN THE MODERN AGE","2013-05-31","New Course","College of Business",null," 415"," 4","Undergraduate","DHE","DHE 415"]
[548,0,"Sustainability Content in Course","Chemical, Biological and Environmental Engineering","School of Chem, Bio, Enviro En","School of Chem, Bio, Enviro En","CHE","Graduate","CHE 551","SOLAR ENERGY TECHNOLOGIES","2011-05-05","New Course","College of Engineering",null," 551"," 5","Graduate","CHE","CHE 551"]
[335,0,"Sustainability Course","Chemical, Biological and Environmental Engineering","School of Chem, Bio, Enviro En","School of Chem, Bio, Enviro En","CHE","Undergraduate","CHE 450","CONVENTIONAL AND ALTERNATIVE ENERGY SYSTEMS","2012-01-24","New Course","College of Engineering",null," 450"," 4","Undergraduate","CHE","CHE 450"]
[23,0,"Sustainability Content in Course","Biological & Ecological Engineering","School of Chem, Bio, Enviro En","School of Chem, Bio, Enviro En","BIOE","Undergraduate","BIOE 420","SOCIAL JUSTICE, ETHICS, AND ENGINEERING","2012-07-03","Change Course","College of Engineering",null," 420"," 4","Undergraduate","BIOE","BIOE 420"]
[119,0,"Sustainability Course","Biological & Ecological Engineering","Biological & Ecological Engr","Biological & Ecological Engr","BEE","Undergraduate","BEE 411","GLOBAL ENVIRONMENTAL CHANGE: USING DATA TO INFORM DECISIONS","2013-05-02","New Course","College of Engineering",null," 411"," 4","Undergraduate","BEE","BEE 411"]
[421,0,"Sustainability Content in Course","Business ","Business Administration","Business Administration","BA","Undergraduate","BA 432","ENVIRONMENTAL LAW AND BUSINESS","2012-11-05","New Course","College of Business",null," 432"," 4","Undergraduate","BA","BA 432"]
[560,0,"Sustainability Content in Course","EOAS","Oceanography","Oceanography","ATS","Undergraduate","ATS 421","CLIMATE MODELING","2012-07-24","New Course","College of Earth, Ocean and Atmospheric Sciences",null," 421"," 4","Undergraduate","ATS","ATS 421"]
[765,0,"Sustainability Content in Course","Agricultural and Resource Economics","Applied Economics","Applied Economics","AREC","Undergraduate","AREC 462","THE ECONOMIC HISTORY OF AMERICAN AGRICULTURE","2013-05-28","New Course","College of Agricultural Sciences",null," 462"," 4","Undergraduate","AREC","AREC 462"]
[274,0,"Sustainability Course","Agricultural and Resource Economics","Applied Economics","Applied Economics","AREC","Undergraduate","AREC 456","ECONOMICS OF WATER CONSERVATION","2011-08-29","New Course","College of Agricultural Sciences",null," 456"," 4","Undergraduate","AREC","AREC 456"]
[497,0,"Sustainability Content in Course","Agricultural and Resource Economics","Applied Economics","Applied Economics","AREC","Undergraduate","AREC 452","MARINE ECONOMICS","2011-01-05","New Course","College of Agricultural Sciences",null," 452"," 4","Undergraduate","AREC","AREC 452"]
[34,0,"Sustainability Content in Course","Agricultural and Resource Economics","Applied Economics","Applied Economics","AREC","Undergraduate","AREC 421","ECONOMICS OF RURAL POVERTY AND THE U.S. SOCIAL SAFETY NET","2013-08-15","New Course","College of Agricultural Sciences",null," 421"," 4","Undergraduate","AREC","AREC 421"]
[637,0,"Sustainability Content in Course","History, Philosophy & Religion","School of Lang, Cult and Soc","School of Lang, Cult and Soc","ANTH","Undergraduate","ANTH 466","RURAL ANTHROPOLOGY","2010-06-24","New Course","College of Liberal Arts",null," 466"," 4","Undergraduate","ANTH","ANTH 466"]
[197,0,"Sustainability Content in Course","Wood Science and Engineering","Wood Science and Engineering","Wood Science and Engineering","WSE","Graduate","WSE 520","WSE 520 THE GLOBAL CONTEXT OF THE FOREST SECTOR","2013-02-13","New Course","Fall 2013",null," 520"," 5","Graduate"]
[574,0,"Sustainability Course","Language, Culture & Society",null,"School of Lang, Cult and Soc","WS","Graduate","WS 585","WS 585 TRANSNATIONAL FEMINISMS","2011-08-16","New Course","Spring 2011",null," 585"," 5","Graduate"]
[584,0,"Sustainability Course","Language, Culture & Society",null,"School of Lang, Cult and Soc","WS","Graduate","WS 532","WS 532 COMMUNITY ORGANIZING & COLLECTIVE ACTION","2011-06-02","New Course","Fall 2011",null," 532"," 5","Graduate"]
[416,0,"Sustainability Course","Language, Culture & Society",null,"School of Lang, Cult and Soc","WS","Graduate","WS 523","WS 523 COMMUNITY ORGANIZING AND COLLECTIVE ACTION","2012-04-11","New Course","Spring 2012",null," 523"," 5","Graduate"]
[378,0,"Sustainability Content in Course","Language, Culture & Society",null,"School of Lang, Cult and Soc","WS","Graduate","WS 518","WS 518 FEMINIST RESEARCH","2012-06-04","Change Course","Summer 2012",null," 518"," 5","Graduate"]
[1,0,"Sustainability Content in Course","Environmental and Molecular Toxicology","Environ & Molecular Toxicology","Environ & Molecular Toxicology","TOX","Graduate","TOX 535","TOX 535 GENES AND CHEMICALS IN AGRICULTURE: VALUE AND RISK","2013-12-18","Change Course","Winter 2014",null," 535"," 5","Graduate"]
[400,0,"Sustainability Course","Language, Culture & Society","School of Lang, Cult and Soc","School of Lang, Cult and Soc","SPAN","Graduate","SPAN 569","SPAN 569 TOPICS IN JOTERÍA STUDIES","2012-03-27","New Course","Fall 2012",null," 569"," 5","Graduate"]
[411,0,"Sustainability Course","Forest Engineering, Resources & Management","Forest Ecosystems & Society","Forest Ecosystems & Society","SNR","Graduate","SNR 808","SNR 808 SUSTAINABLE NATURAL RESOURCE DEVELOPMENT","2012-02-27","New Course","Summer 2012",null," 808"," 8","Graduate"]
[57,0,"Sustainability Course","Agricultural Education and Agricultural Sciences","Applied Economics","Applied Economics","RS","Graduate","RS 513","RS 513 CONTEMPORARY RURAL ISSUES","2013-08-14","New Course","Spring 2014",null," 513"," 5","Graduate"]
[42,0,"Sustainability Content in Course","Language, Culture & Society","School of Lang, Cult and Soc","School of Lang, Cult and Soc","QS","Graduate","QS 524","QS 524 TRANS/GENDER POLITICS","2013-09-12","New Course","Winter 2014",null," 524"," 5","Graduate"]
[877,0,"Sustainability Course","History, Philosophy & Religion","School of Psy Sci","School of Psy Sci","PSY","Graduate","PSY 592","PSY 592 CONSERVATION PSYCHOLOGY","2010-09-21","Change Course","Fall 2010",null,{"$f":"RIGHT(I66,4)","v":" 592"},{"$f":"LEFT(O66,2)","v":" 5"},{"$f":"IF(LEFT(P66,1)=\"/\", \"Both\",IF(VALUE(RIGHT(P66,1))>4,\"Graduate\",\"Undergraduate\"))","v":"Graduate"}]
[489,0,"Sustainability Content in Course","History, Philosophy & Religion","School of Hist, Phil, and Rel.","School of Hist, Phil, and Rel.","PHL","Graduate","PHL 462X","PHL 462X/PHL 562X AESTHETICS OF THE NATURAL WORLD","2011-10-28","New Course","Winter 2012",null,"462X","46","Graduate"]
[927,0,"Sustainability Course","Pharmacy","Pharmacy","Pharmacy","PHAR","Graduate","PHAR 716","PHAR 716 HEALTHCARE CHALLENGES FOR PERSONS WITH DISABILITIES","2010-07-27","Change Course","Fall 2010",null," 716"," 7","Graduate"]
[300,0,"Sustainability Course","Forest Ecosystems and Society","Forest Ecosystems & Society","Forest Ecosystems & Society","MNR","Graduate","MNR 560","MASTER'S CASE STUDY","2011-04-18","New Course","College of Forestry",null," 560"," 5","Graduate"]
[688,0,"Sustainability Content in Course","Forest Ecosystems and Society","Forest Ecosystems & Society","Forest Ecosystems & Society","MNR","Graduate","MNR 530","TROPICAL FOREST ECOLOGY AND MANAGEMENT: A GLOBAL PERSPECTIVE","2012-07-02","New Course","College of Forestry",null," 530"," 5","Graduate"]
[571,0,"Sustainability Course","Forest Ecosystems and Society","Forest Ecosystems & Society","Forest Ecosystems & Society","MNR","Graduate","MNR 511","INTRODUCTION TO SUSTAINABLE NATURAL RESOURCES","2010-11-29","New Course","College of Forestry",null," 511"," 5","Graduate"]
[211,0,"Sustainability Course","Mechanical, Industrial and Manufacturing Engineering","School of Mech, Ind, Manf Engr","School of Mech, Ind, Manf Engr","MFGE","Graduate","MFGE 535","INDUSTRIAL SUSTAINABILITY ANALYSIS","2013-06-12","New Course","College of Engineering",null," 535"," 5","Graduate"]
[537,0,"Sustainability Course",null,"Molecular & Cellular Biology","Molecular & Cellular Biology","MCB","Graduate","MCB 535","GENES & CHEMICALS IN AGRICULTURE: VALUE & RISK","2010-10-01","New Course","Graduate School",null," 535"," 5","Graduate"]
[613,0,"Sustainability Course","Horticulture","Horticulture","Horticulture","HORT","Graduate","HORT 555","URBAN FOREST PLANNING, POLICY AND MANAGEMENT","2013-05-30","Change Course","College of Agricultural Sciences",null," 555"," 5","Graduate"]
[257,0,"Sustainability Content in Course","Horticulture","Horticulture","Horticulture","HORT","Graduate","HORT 520","CURRENT TOPICS IN HORTICULTURAL SYSTEMS","2012-06-12","New Course","College of Agricultural Sciences",null," 520"," 5","Graduate"]
[371,0,"Sustainability Content in Course","Horticulture","Horticulture","Horticulture","HORT","Graduate","HORT 518","CURRENT TOPICS IN ENTOMOLOGY","2012-12-11","New Course","College of Agricultural Sciences",null," 518"," 5","Graduate"]
[256,0,"Sustainability Content in Course","Social and Behavioral Health Sciences","School Soc. & Behav. Science","School Soc. & Behav. Science","HDFS","Graduate","HDFS 685","RACE, CLASS, CULTURE, AND AGING","2012-05-24","New Course","College of Public Health and Human Sciences",null," 685"," 6","Graduate"]
[295,0,"Sustainability Content in Course","Social and Behavioral Health Sciences","School Soc. & Behav. Science","School Soc. & Behav. Science","H","Graduate","H 685","RACE, CLASS, CULTURE, AND AGING","2012-05-24","New Course","College of Public Health and Human Sciences",null," 685"," 6","Graduate"]
[908,0,"Sustainability Content in Course","Social and Behavioral Health Sciences","School Soc. & Behav. Science","School Soc. & Behav. Science","H","Graduate","H 682","ENVIR & OCCUP HLTH & SAFE: MOVING FROM RESEARCH TO PRACTICE","2012-07-20","New Course","College of Public Health and Human Sciences",null," 682"," 6","Graduate"]
[7,0,"Sustainability Course","Social and Behavioral Health Sciences","School Soc. & Behav. Science","School Soc. & Behav. Science","H","Graduate","H 643","SUSTAINABLE DVLP & ENVIRONMENTAL HEALTH","2012-06-12","New Course","College of Public Health and Human Sciences",null," 643"," 6","Graduate"]
[692,0,"Sustainability Course","Social and Behavioral Health Sciences","School Soc. & Behav. Science","School Soc. & Behav. Science","H","Graduate","H 583","ENVIRONMENTAL & OCCUPATIONAL HLTH & SAFETY MANAGEMENT","2012-06-14","Change Course","College of Public Health and Human Sciences",null," 583"," 5","Graduate"]
[455,0,"Sustainability Content in Course","Social and Behavioral Health Sciences","School Soc. & Behav. Science","School Soc. & Behav. Science","H","Graduate","H 552","DISASTER EPIDEMIOLOGY","2013-04-04","New Course","College of Public Health and Human Sciences",null," 552"," 5","Graduate"]
[458,0,"Sustainability Content in Course","Social and Behavioral Health Sciences","School Soc. & Behav. Science","School Soc. & Behav. Science","H","Graduate","H 546","ENVIRONMENTAL AND OCCUPATIONAL SAMPLING","2012-06-14","Change Course","College of Public Health and Human Sciences",null," 546"," 5","Graduate"]
[146,0,"Sustainability Content in Course","Social and Behavioral Health Sciences","School Soc. & Behav. Science","School Soc. & Behav. Science","H","Graduate","H 544","ENVIRONMENTAL AND OCCUPATIONAL EPIDEMIOLOGY","2012-08-22","New Course","College of Public Health and Human Sciences",null," 544"," 5","Graduate"]
[281,0,"Sustainability Content in Course","Social and Behavioral Health Sciences","School Soc. & Behav. Science","School Soc. & Behav. Science","H","Graduate","H 541","AIR QUALITY AND HUMAN HEALTH","2012-06-27","Change Course","College of Public Health and Human Sciences",null," 541"," 5","Graduate"]
[273,0,"Sustainability Content in Course","Social and Behavioral Health Sciences","School Soc. & Behav. Science","School Soc. & Behav. Science","H","Graduate","H 540","WATER AND HUMAN HEALTH","2012-12-11","Change Course","College of Public Health and Human Sciences",null," 540"," 5","Graduate"]
[442,0,"Sustainability Course","Social and Behavioral Health Sciences","School Soc. & Behav. Science","School Soc. & Behav. Science","H","Graduate","H 512","INTRODUCTION TO ENVIRONMENTAL & OCCUPATIONAL HEALTH SCIENCES","2012-06-05","Change Course","College of Public Health and Human Sciences",null," 512"," 5","Graduate"]
[536,0,"Sustainability Course",null,"Interdisciplinary Studies","Interdisciplinary Studies","GRAD","Graduate","GRAD 540","INTERVENING THE ISMS: DIVERSITY AWARENESS","2013-09-25","New Course","Graduate School",null," 540"," 5","Graduate"]
[542,0,"Sustainability Content in Course",null,"Interdisciplinary Studies","Interdisciplinary Studies","GRAD","Graduate","GRAD 520","RESPONSIBLE CONDUCT OF RESEARCH","2013-04-16","Change Course","Graduate School",null," 520"," 5","Graduate"]
[841,0,"Sustainability Content in Course","Fisheries and Wildlife","Fisheries & Wildlife","Fisheries & Wildlife","FW","Graduate","FW 562","ECOSYSTEM SERVICES","2010-08-25","Change Course","College of Agricultural Sciences",null," 562"," 5","Graduate"]
[16,0,"Sustainability Course","Forest Engineering, Resources & Management","Forest Resources","Forest Resources","FOR","Graduate","FOR 550","SUSTAINABLE FOREST MANAGEMENT","2011-08-16","New Course","College of Forestry",null," 550"," 5","Graduate"]
[866,0,"Sustainability Course","Forest Ecosystems and Society","Forest Ecosystems & Society","Forest Ecosystems & Society","FES","Graduate","FES 641","SUSTAINABLE DEVELOPMENT AND RENEWABLE RESOURCE ECONOMICS","2013-07-16","New Course","College of Forestry",null," 641"," 6","Graduate"]
[211,0,"Sustainability Content in Course","Forest Ecosystems and Society","Forest Ecosystems & Society","Forest Ecosystems & Society","FES","Graduate","FES 555","URBAN FOREST PLANNING, POLICY, AND MANAGEMENT","2013-05-21","Change Course","College of Forestry",null," 555"," 5","Graduate"]
[186,0,"Sustainability Content in Course","Forest Ecosystems and Society","Forest Ecosystems & Society","Forest Ecosystems & Society","FES","Graduate","FES 545","ECOLOGICAL RESTORATION","2013-09-04","Change Course","College of Forestry",null," 545"," 5","Graduate"]
[225,0,"Sustainability Content in Course","Forest Ecosystems and Society","Forest Ecosystems & Society","Forest Ecosystems & Society","FES","Graduate","FES 536","CARBON SEQUESTRATION IN FOREST","2011-08-03","Change Course","College of Forestry",null," 536"," 5","Graduate"]
[484,0,"Sustainability Course","History, Philosophy & Religion","School of Lang, Cult and Soc","School of Lang, Cult and Soc","ES","Graduate","ES 560","ETHNICITY AND SOCIAL JUSTICE","2010-11-29","Change Course","College of Liberal Arts",null," 560"," 5","Graduate"]
[709,0,"Sustainability Course","Botany and Plant Pathology","Entomology","Entomology","ENT","Graduate","ENT 518","CURRENT TOPICS IN ENTOMOLOGY","2012-12-11","New Course","College of Agricultural Sciences",null," 518"," 5","Graduate"]
[938,0,"Sustainability Course","Writing, Literature, and Film","School of Arts and Comm","School of Arts and Comm","COMM","Graduate","COMM 808","NATURAL RESOURCES NEGOTIATION & DECISION MAKING","2012-03-09","New Course","College of Liberal Arts",null," 808"," 8","Graduate"]
[623,0,"Sustainability Content in Course","Chemistry","Chemistry","Chemistry","CH","Graduate","CH 582","CHEMISTRY AND MATERIALS IN BATTERIES AND SUPERCAPACITORS","2013-09-26","New Course","College of Science",null," 582"," 5","Graduate"]
[24,0,"Sustainability Content in Course","Microbiology","Biology","Biology","BI","Graduate","BI 535","GENES AND CHEMICALS IN AGRICULTURE: VALUE AND RISK","2013-12-18","Change Course","College of Science",null," 535"," 5","Graduate"]
[678,0,"Sustainability Content in Course","Business ","Business Administration","Business Administration","BA","Graduate","BA 566","CLEAN TECHNOLOGY COMMERCIALIZATION","2011-04-25","New Course","College of Business",null," 566"," 5","Graduate"]
[549,0,"Sustainability Content in Course","EOAS","Oceanography","Oceanography","ATS","Graduate","ATS 564","INTERACTIONS OF VEGETATION AND ATMOSPHERE","2013-11-04","Change Course","College of Earth, Ocean and Atmospheric Sciences",null," 564"," 5","Graduate"]
[604,0,"Sustainability Content in Course","EOAS","Oceanography","Oceanography","ATS","Graduate","ATS 546","EXPERIMENTAL ENERGY AND GAS EXCHANGE","2012-10-23","Change Course","College of Earth, Ocean and Atmospheric Sciences",null," 546"," 5","Graduate"]
[426,0,"Sustainability Course","Agricultural and Resource Economics","Applied Economics","Applied Economics","AREC","Graduate","AREC 640","SUSTAINABLE DEVELOPMENT","2010-06-10","New Course","College of Agricultural Sciences",null," 640"," 6","Graduate"]
[664,0,"Sustainability Course","Agricultural and Resource Economics","Applied Economics","Applied Economics","AREC","Graduate","AREC 550","AREC 550 ENVIRONMENTAL AND NATURAL RESOURCE ECONOMICS","2013-07-18","Change Course","College of Agricultural Sciences",null," 550"," 5","Graduate"]
[465,0,"Sustainability Content in Course","Agricultural and Resource Economics","Applied Economics","Applied Economics","AREC","Graduate","AREC 534","ENVIRON AND RESOURCE ECONOMICS","2011-10-04","Change Course","College of Agricultural Sciences",null," 534"," 5","Graduate"]
[191,0,"Sustainability Course","History, Philosophy & Religion","School of Lang, Cult and Soc","School of Lang, Cult and Soc","ANTH","Graduate","ANTH 567","AGRI-FOOD MOVEMENTS","2012-02-09","New Course","College of Liberal Arts",null," 567"," 5","Graduate"]
[195,0,"Sustainability Content in Course","Business ","Business Administration","Business Administration","ACTG","Graduate","ACTG 524","ENVIRONMENTAL ACCOUNTING AND REPORTING","2011-04-29","New Course","College of Business",null," 524"," 5","Graduate"]
[852,0,"Sustainability Course","Zoology","Zoology","Zoology","Z","Undergraduate","Z 349","Z 349 *BIODIVERSITY: CAUSES, CONSER","2010-10-28","Change Course","Winter 2011",null," 349"," 3","Undergraduate"]
[208,0,"Sustainability Course","Wood Science and Engineering","Wood Science and Engineering","Wood Science and Engineering","WSE","Undergraduate","WSE 321","WSE 321 CHEMISTRY OF RENEWABLE MATERIALS","2013-03-19","Change Course","Fall 2013",null," 321"," 3","Undergraduate"]
[446,0,"Sustainability Content in Course","Wood Science and Engineering","Wood Science and Engineering","Wood Science and Engineering","WSE","Undergraduate","WSE 321","WSE 321 CHEM & STRUCTURE RENEW MATLS","2012-05-11","Change Course","Fall 2012",null," 321"," 3","Undergraduate"]
[457,0,"Sustainability Content in Course","Wood Science and Engineering","Wood Science and Engineering","Wood Science and Engineering","WSE","Undergraduate","WSE 266","WSE 266 INDUSTRIAL HEMP","2012-07-12","New Course","Fall 2012",null," 266"," 2","Undergraduate"]
[447,0,"Sustainability Course","Wood Science and Engineering","Wood Science and Engineering","Wood Science and Engineering","WSE","Undergraduate","WSE 111","WSE 111 RENEWABLE MATERIALS FOR A GREEN PLANET","2012-03-19","New Course","Winter 2013",null," 111"," 1","Undergraduate"]
[556,0,"Sustainability Content in Course","Language, Culture & Society",null,"School of Lang, Cult and Soc","WS","Undergraduate","WS 488","WS 488/WS 588 GLOBAL EXPERIENCE III","2011-11-15","New Course","Fall 2011",null," 488"," 4","Undergraduate"]
[733,0,"Sustainability Course","Language, Culture & Society",null,"School of Lang, Cult and Soc","WS","Undergraduate","WS 466","WS 466 FAT STUDIES","2011-02-04","Change Course","Summer 2011",null," 466"," 4","Undergraduate"]
[425,0,"Sustainability Course","Language, Culture & Society",null,"School of Lang, Cult and Soc","WS","Undergraduate","WS 462","WS 462 *INTRODUCTION TO QUEER STUDIES","2012-07-16","Change Course","Fall 2012",null," 462"," 4","Undergraduate"]
[319,0,"Sustainability Content in Course","Language, Culture & Society",null,"School of Lang, Cult and Soc","WS","Undergraduate","WS 350","WS 350 POLITICS OF MOTHERHOOD IN GLOBAL CONTEXT","2012-10-31","New Course","Winter 2013",null," 350"," 3","Undergraduate"]
[904,0,"Sustainability Course","Language, Culture & Society",null,"School of Lang, Cult and Soc","WS","Undergraduate","WS 230","WS 230 *WOMEN IN THE MOVIES","2010-08-23","Change Course","Winter 2011",null," 230"," 2","Undergraduate"]
[31,0,"Sustainability Course","Language, Culture & Society",null,"School of Lang, Cult and Soc","WLC","Undergraduate","WLC 473","WLC 473 COMMUNITY-BASED LEARNING","2013-10-22","Change Course","Winter 2014",null," 473"," 4","Undergraduate"]
[9,0,"Sustainability Course","Language, Culture & Society",null,"School of Lang, Cult and Soc","WLC","Undergraduate","WLC 373","WLC 373 APPROACHES TO SOCIAL JUSTICE","2013-11-13","New Course","Fall 2013",null," 373"," 3","Undergraduate"]
[8,0,"Sustainability Course","Language, Culture & Society","School of Lang, Cult and Soc","School of Lang, Cult and Soc","WGSS","Undergraduate","WGSS 485","WGSS 485 CAPSTONE IN SOCIAL JUSTICE","2013-11-13","New Course","Winter 2014",null," 485"," 4","Undergraduate"]
[178,0,"Sustainability Course","Language, Culture & Society","School of Lang, Cult and Soc","School of Lang, Cult and Soc","WGSS","Undergraduate","WGSS 463","WGSS 463 GLOBAL SEX WORK AND TRAFFICKING","2013-02-15","New Course","Summer 2013",null," 463"," 4","Undergraduate"]
[166,0,"Sustainability Course","Language, Culture & Society","School of Lang, Cult and Soc","School of Lang, Cult and Soc","WGSS","Undergraduate","WGSS 450","WGSS 450 ECOFEMINISM","2013-04-17","Change Course","Fall 2013",null," 450"," 4","Undergraduate"]
[266,0,"Sustainability Course","Language, Culture & Society","School of Lang, Cult and Soc","School of Lang, Cult and Soc","WGSS","Undergraduate","WGSS 280","WGSS 280 WOMEN WORLDWIDE","2013-06-24","Change Course","Winter 2014",null," 280"," 2","Undergraduate"]
[336,0,"Sustainability Course","Horticulture","Forest Ecosystems & Society","Forest Ecosystems & Society","SUS","Undergraduate","SUS 420","SUS 420 SOCIAL DIMENSIONS OF SUSTAINABILITY","2012-06-26","New Course","Winter 2013",null," 420"," 4","Undergraduate"]
[323,0,"Sustainability Course","Horticulture","Forest Ecosystems & Society","Forest Ecosystems & Society","SUS","Undergraduate","SUS 330","SUS 330 ECOLOGICAL DIMENSIONS OF SUSTAINABILITY","2012-08-21","New Course","Spring 2013",null," 330"," 3","Undergraduate"]
[360,0,"Sustainability Course","Horticulture","Forest Ecosystems & Society","Forest Ecosystems & Society","SUS","Undergraduate","SUS 304","SUS 304 SUSTAINABILITY ASSESSMENT","2013-01-17","New Course","Fall 2012",null," 304"," 3","Undergraduate"]
[367,0,"Sustainability Course","Crop and Soil Science","Crop & Soil Science","Crop & Soil Science","SOIL","Undergraduate","SOIL 102","SOIL 102 INTRODUCTION TO ENVIRONMENTAL SCIENCE AND SUSTAINABILITY","2012-05-28","New Course","Fall 2013",null," 102"," 1","Undergraduate"]
[47,0,"Sustainability Course","Language, Culture & Society","School of Lang, Cult and Soc","School of Lang, Cult and Soc","QS","Undergraduate","QS 462","QS 462/QS 562 QUEER THEORIES","2013-08-20","New Course","Spring 2014",null," 462"," 4","Undergraduate"]
[208,0,"Sustainability Content in Course","Language, Culture & Society","School of Lang, Cult and Soc","School of Lang, Cult and Soc","QS","Undergraduate","QS 399","SPECIAL TOPICS IN QUEER STUDIES","2013-02-26","New Course","College of Liberal Arts",null,{"$f":"RIGHT(I130,4)","v":" 399"},{"$f":"LEFT(O130,2)","v":" 3"},{"$f":"IF(LEFT(P130,1)=\"/\", \"Both\",IF(VALUE(RIGHT(P130,1))>4,\"Graduate\",\"Undergraduate\"))","v":"Undergraduate"}]
[205,0,"Sustainability Content in Course","Language, Culture & Society","School of Lang, Cult and Soc","School of Lang, Cult and Soc","QS","Undergraduate","QS 364","QS 364 TRANS/GENDER POLITICS","2013-05-15","New Course","Summer 2013",null," 364"," 3","Undergraduate"]
[55,0,"Sustainability Course","Language, Culture & Society","School of Lang, Cult and Soc","School of Lang, Cult and Soc","QS","Undergraduate","QS 262","QS 262 *INTRODUCTION TO QUEER STUDIES","2013-08-20","Change Course","Fall 2013",null," 262"," 2","Undergraduate"]
[61,0,"Sustainability Content in Course","Language, Culture & Society","School of Lang, Cult and Soc","School of Lang, Cult and Soc","QS","Undergraduate","QS 262","INTRODUCTION TO QUEER STUDIES","2013-04-28","New Course","College of Liberal Arts",null," 262"," 2","Undergraduate"]
[878,0,"Sustainability Course","History, Philosophy & Religion","School of Psy Sci","School of Psy Sci","PSY","Undergraduate","PSY 492","PSY 492 CONSERVATION PSYCHOLOGY","2010-09-21","Change Course","Fall 2010",null," 492"," 4","Undergraduate"]
[579,0,"Sustainability Content in Course","History, Philosophy & Religion","School of Psy Sci","School of Psy Sci","PSY","Undergraduate","PSY 492","CONSERVATION PSYCHOLOGY","2010-09-21","Change Course","College of Liberal Arts",null," 492"," 4","Undergraduate"]
[628,0,"Sustainability Content in Course","History, Philosophy & Religion","School of Hist, Phil, and Rel.","School of Hist, Phil, and Rel.","PHL","Undergraduate","PHL 315","PHL 315 GANDHI AND NONVIOLENCE","2011-02-05","New Course","Fall 2010",null," 315"," 3","Undergraduate"]
[231,0,"Sustainability Content in Course","History, Philosophy & Religion","School of Hist, Phil, and Rel.","School of Hist, Phil, and Rel.","PHL","Undergraduate","PHL 315","GANDHI AND NONVIOLENCE","2011-02-05","New Course","College of Liberal Arts",null," 315"," 3","Undergraduate"]
[229,0,"Sustainability Content in Course","History, Philosophy & Religion","School of Hist, Phil, and Rel.","School of Hist, Phil, and Rel.","PHL","Undergraduate","PHL 214","PHL 214 INTRODUCTION TO ISLAMIC TRADITIONS","2013-01-09","New Course","Spring 2013",null," 214"," 2","Undergraduate"]
[634,0,"Sustainability Content in Course","History, Philosophy & Religion","School of Hist, Phil, and Rel.","School of Hist, Phil, and Rel.","PHL","Undergraduate","PHL 213","PHL 213 INTRODUCTION TO HINDU TRADITIONS","2011-02-07","New Course","Fall 2010",null," 213"," 2","Undergraduate"]
[630,0,"Sustainability Content in Course","EOAS","Oceanography","Oceanography","OC","Undergraduate","OC 333","OCEANS, COASTS AND PEOPLE","2012-04-23","New Course","College of Earth, Ocean and Atmospheric Sciences",null," 333"," 3","Undergraduate"]
[103,0,"Sustainability Course","Forest Ecosystems and Society","Natural Resources","Natural Resources","NR","Undergraduate","NR 455","NATURAL RESOURCE DECISION MAK","2010-11-19","Change Course","College of Forestry",null," 455"," 4","Undergraduate"]
[747,0,"Sustainability Content in Course","Education",null,"Business Administration","MS","Undergraduate","MS 390","MARKETING","2012-03-09","Change Course","College of Business",null," 390"," 3","Undergraduate"]
[669,0,"Sustainability Content in Course","Mechanical, Industrial and Manufacturing Engineering","School of Mech, Ind, Manf Engr","School of Mech, Ind, Manf Engr","MFGE","Undergraduate","MFGE 336","PRODUCTION ENGINEERING","2013-11-01","Change Course","College of Engineering",null," 336"," 3","Undergraduate"]
[229,0,"Sustainability Content in Course","Microbiology","Microbiology","Microbiology","MB","Undergraduate","MB 385","^EMERGING INFECTIOUS DISEASES AND EPIDEMICS","2013-03-15","Change Course","College of Science",null," 385"," 3","Undergraduate"]
[485,0,"Sustainability Course","Mechanical, Industrial and Manufacturing Engineering","School of Mech, Ind, Manf Engr","School of Mech, Ind, Manf Engr","IE","Undergraduate","IE 380","THE RESPONSIBLE ENGINEER","2011-02-07","New Course","College of Engineering",null," 380"," 3","Undergraduate"]
[893,0,"Sustainability Course","History, Philosophy & Religion","School of Hist, Phil, and Rel.","School of Hist, Phil, and Rel.","HSTS","Undergraduate","HSTS 419","*^STUDIES IN SCIENTIFIC CNTRVS","2011-01-04","Change Course","College of Liberal Arts",null," 419"," 4","Undergraduate"]
[644,0,"Sustainability Course","Horticulture","Horticulture","Horticulture","HORT","Undergraduate","HORT 485","ADVANCED PERMACULTURE DESIGN PRACTICUM","2012-02-10","New Course","College of Agricultural Sciences",null," 485"," 4","Undergraduate"]
[538,0,"Sustainability Course","Horticulture","Horticulture","Horticulture","HORT","Undergraduate","HORT 380","SUSTAINABLE LANDSCAPE DESIGN","2012-03-26","Change Course","College of Agricultural Sciences",null," 380"," 3","Undergraduate"]
[485,0,"Sustainability Content in Course","Horticulture","Horticulture","Horticulture","HORT","Undergraduate","HORT 350","URBAN FORESTRY","2013-05-30","Change Course","College of Agricultural Sciences",null," 350"," 3","Undergraduate"]
[539,0,"Sustainability Content in Course","Horticulture","Horticulture","Horticulture","HORT","Undergraduate","HORT 330","*PLAGUES, PESTS, AND POLITICS","2012-07-26","Change Course","College of Agricultural Sciences",null," 330"," 3","Undergraduate"]
[226,0,"Sustainability Course","Horticulture","Horticulture","Horticulture","HORT","Undergraduate","HORT 319","RESTORATION HORTICULTURE","2012-05-17","New Course","College of Agricultural Sciences",null," 319"," 3","Undergraduate"]
[686,0,"Sustainability Content in Course","Horticulture","Horticulture","Horticulture","HORT","Undergraduate","HORT 316","PLANT NUTRITION","2010-08-25","Change Course","College of Agricultural Sciences",null," 316"," 3","Undergraduate"]
[551,0,"Sustainability Course","Horticulture","Horticulture","Horticulture","HORT","Undergraduate","HORT 315","SUSTAINABLE LANDSCAPES: MAINTENANCE, CONSERVATION, RESTORE","2012-10-11","Change Course","College of Agricultural Sciences",null," 315"," 3","Undergraduate"]
[488,0,"Sustainability Content in Course","Horticulture","Horticulture","Horticulture","HORT","Undergraduate","HORT 311","^PLANT PROPAGATION","2010-07-06","Change Course","College of Agricultural Sciences",null," 311"," 3","Undergraduate"]
[271,0,"Sustainability Content in Course","Horticulture","Horticulture","Horticulture","HORT","Undergraduate","HORT 301","THE BIOLOGY OF HORTICULTURE","2011-01-26","Change Course","College of Agricultural Sciences",null," 301"," 3","Undergraduate"]
[909,0,"Sustainability Course","Horticulture","Horticulture","Horticulture","HORT","Undergraduate","HORT 300","CROP PRODUCTION IN PACIFIC NORTHWEST AGROECOSYSTEMS","2012-07-25","Change Course","College of Agricultural Sciences",null," 300"," 3","Undergraduate"]
[90,0,"Sustainability Content in Course","Horticulture","Horticulture","Horticulture","HORT","Undergraduate","HORT 286","PERMACULTURE DESIGN AND THEORY CERTIFICATION","2010-07-29","New Course","College of Agricultural Sciences",null," 286"," 2","Undergraduate"]
[258,0,"Sustainability Content in Course","Horticulture","Horticulture","Horticulture","HORT","Undergraduate","HORT 285","PERMACULTURE DESIGN AND THEORY: CERTIFICATE COURSE","2013-11-04","Change Course","College of Agricultural Sciences",null," 285"," 2","Undergraduate"]
[729,0,"Sustainability Content in Course","Horticulture","Horticulture","Horticulture","HORT","Undergraduate","HORT 280","INTRO TO LANDSCAPE DESIGN","2011-04-28","Change Course","College of Agricultural Sciences",null," 280"," 2","Undergraduate"]
[308,0,"Sustainability Content in Course","Social and Behavioral Health Sciences","School Soc. & Behav. Science","School Soc. & Behav. Science","H","Undergraduate","H 432","ECON ISSUES IN HLTH & MED CARE","2010-11-27","Change Course",null,null," 432"," 4","Undergraduate"]
[242,0,"Sustainability Content in Course","Social and Behavioral Health Sciences","School Soc. & Behav. Science","School Soc. & Behav. Science","H","Undergraduate","H 381","ADV TOPICS IN ENVIRONMENTAL & OCCUPATIONAL HEALTH & SAFETY","2012-07-20","New Course","College of Public Health and Human Sciences",null," 381"," 3","Undergraduate"]
[607,0,"Sustainability Content in Course","EOAS","Geosciences","Geosciences","GEO","Undergraduate","GEO 426","DEVELOPMENT AND GLOBAL RESOURCES","2012-11-26","Change Course","College of Earth, Ocean and Atmospheric Sciences",null," 426"," 4","Undergraduate"]
[700,0,"Sustainability Content in Course","Fisheries and Wildlife","Fisheries & Wildlife","Fisheries & Wildlife","FW","Undergraduate","FW 462","ECOSYSTEM SERVICES","2010-08-25","Change Course","College of Agricultural Sciences",null," 462"," 4","Undergraduate"]
[462,0,"Sustainability Content in Course","Fisheries and Wildlife","Fisheries & Wildlife","Fisheries & Wildlife","FW","Undergraduate","FW 445","ECOLOGICAL RESTORATION","2013-05-30","Change Course","College of Agricultural Sciences",null," 445"," 4","Undergraduate"]
[169,0,"Sustainability Content in Course","Fisheries and Wildlife","Fisheries & Wildlife","Fisheries & Wildlife","FW","Undergraduate","FW 251","PRINCIPLES OF FISH AND WILDLIFE CONSERVATION","2013-02-28","Change Course","College of Agricultural Sciences",null," 251"," 2","Undergraduate"]
[33,0,"Sustainability Content in Course","Forest Ecosystems and Society","Forest Ecosystems & Society","Forest Ecosystems & Society","FS","Undergraduate","FS 492","ECOSYSTEM SERVICES","2010-07-02","Change Course","College of Forestry",null," 492"," 4","Undergraduate"]
[104,0,"Sustainability Course","Forest Engineering, Resources & Management","Forest Resources","Forest Resources","FOR","Undergraduate","FOR 479","NATURE AND HUMAN EXPERIENCE","2012-11-29","Change Course","College of Forestry",null," 479"," 4","Undergraduate"]
[105,0,"Sustainability Course","Forest Engineering, Resources & Management","Forest Resources","Forest Resources","FOR","Undergraduate","FOR 471","SUSTAINABILITY IN TOURISM AND OUTDOOR LEADERSHIP","2011-01-26","New Course","College of Forestry",null," 471"," 4","Undergraduate"]
[43,0,"Sustainability Content in Course","Forest Engineering, Resources & Management","Forest Resources","Forest Resources","FOR","Undergraduate","FOR 455","URBAN FOREST PLANNING, POLICY AND MANAGEMENT","2010-12-20","Change Course","College of Forestry",null," 455"," 4","Undergraduate"]
[113,0,"Sustainability Content in Course","Forest Engineering, Resources & Management","Forest Resources","Forest Resources","FOR","Undergraduate","FOR 251","RECREATION RESOURCE MANAGEMENT","2010-10-28","Change Course","College of Forestry",null," 251"," 2","Undergraduate"]
[369,0,"Sustainability Content in Course","Forest Ecosystems and Society","Forest Ecosystems & Society","Forest Ecosystems & Society","FES","Undergraduate","FES 455","URBAN FOREST PLANNING, POLICY","2013-05-21","Change Course","College of Forestry",null," 455"," 4","Undergraduate"]
[370,0,"Sustainability Content in Course","Forest Ecosystems and Society","Forest Ecosystems & Society","Forest Ecosystems & Society","FES","Undergraduate","FES 454","MANAGING WILDLAND-URBAN INTERF","2013-05-20","Change Course","College of Forestry",null," 454"," 4","Undergraduate"]
[403,0,"Sustainability Content in Course","Forest Ecosystems and Society","Forest Ecosystems & Society","Forest Ecosystems & Society","FES","Undergraduate","FES 453","NATURE-BASED TOURISM","2013-09-04","Change Course","College of Forestry",null," 453"," 4","Undergraduate"]
[501,0,"Sustainability Content in Course","Forest Ecosystems and Society","Forest Ecosystems & Society","Forest Ecosystems & Society","FES","Undergraduate","FES 451","HISTORIC & CULT ASPECTS OF REC","2013-05-20","Change Course","College of Forestry",null," 451"," 4","Undergraduate"]
[503,0,"Sustainability Course","Forest Ecosystems and Society","Forest Ecosystems & Society","Forest Ecosystems & Society","FES","Undergraduate","FES 445","ECOLOGICAL RESTORATION","2013-05-20","Change Course","College of Forestry",null," 445"," 4","Undergraduate"]
[45,0,"Sustainability Content in Course","Forest Ecosystems and Society","Forest Ecosystems & Society","Forest Ecosystems & Society","FES","Undergraduate","FES 355"," MANAGEMENT FOR MULTIPLE RESOURCE VALUES","2013-05-20","Change Course","College of Forestry",null," 355"," 3","Undergraduate"]
[46,0,"Sustainability Content in Course","Forest Ecosystems and Society","Forest Ecosystems & Society","Forest Ecosystems & Society","FES","Undergraduate","FES 352","WILDERNESS MANAGEMENT","2013-05-20","Change Course","College of Forestry",null," 352"," 3","Undergraduate"]
[50,0,"Sustainability Content in Course","Forest Ecosystems and Society","Forest Ecosystems & Society","Forest Ecosystems & Society","FES","Undergraduate","FES 350","URBAN FORESTRY","2013-05-20","Change Course","College of Forestry",null," 350"," 3","Undergraduate"]
[637,0,"Sustainability Content in Course","Forest Ecosystems and Society","Forest Ecosystems & Society","Forest Ecosystems & Society","FES","Undergraduate","FES 240","*FOREST BIOLOGY","2013-05-20","Change Course","College of Forestry",null," 240"," 2","Undergraduate"]
[922,0,"Sustainability Content in Course","Forest Engineering, Resources & Management","Forest Engr, Resources & Mgmt","Forest Engr, Resources & Mgmt","FE","Undergraduate","FE 435","FOREST WATERSHED MANAGEMENT IMPACTS","2013-01-04","New Course","College of Forestry",null," 435"," 4","Undergraduate"]
[565,0,"Sustainability Content in Course","Forest Engineering, Resources & Management","Forest Engr, Resources & Mgmt","Forest Engr, Resources & Mgmt","FE","Undergraduate","FE 209","FOREST PHOTOGRAMMETRY AND REMOTE SENSING","2013-01-31","New Course","College of Forestry",null," 209"," 2","Undergraduate"]
[150,0,"Sustainability Course","Mechanical, Industrial and Manufacturing Engineering",null,"School of Mech, Ind, Manf Engr","ESE","Undergraduate","ESE 471","ENERGY STORAGE SYSTEMS","2013-09-05","New Course","College of Engineering",null," 471"," 4","Undergraduate"]
[455,0,"Sustainability Course","Mechanical, Industrial and Manufacturing Engineering",null,"School of Mech, Ind, Manf Engr","ESE","Undergraduate","ESE 470","ENERGY DISTRIBUTION SYSTEMS","2013-09-05","New Course","College of Engineering",null," 470"," 4","Undergraduate"]
[666,0,"Sustainability Course","Mechanical, Industrial and Manufacturing Engineering",null,"School of Mech, Ind, Manf Engr","ESE","Undergraduate","ESE 450","ENERGY GENERATION SYSTEMS","2013-08-23","New Course","College of Engineering",null," 450"," 4","Undergraduate"]
[525,0,"Sustainability Course","Mechanical, Industrial and Manufacturing Engineering",null,"School of Mech, Ind, Manf Engr","ESE","Undergraduate","ESE 360","ENERGY CONSUMPTION ANALYSIS","2013-08-30","New Course","College of Engineering",null," 360"," 3","Undergraduate"]
[492,0,"Sustainability Course","Mechanical, Industrial and Manufacturing Engineering",null,"School of Mech, Ind, Manf Engr","ESE","Undergraduate","ESE 355","ENERGY REGULATION","2013-08-22","New Course","College of Engineering",null," 355"," 3","Undergraduate"]
[665,0,"Sustainability Content in Course","History, Philosophy & Religion","School of Lang, Cult and Soc","School of Lang, Cult and Soc","ES","Undergraduate","ES 485","CAPSTONE IN SOCIAL JUSTICE","2013-11-13","New Course","College of Liberal Arts",null," 485"," 4","Undergraduate"]
[638,0,"Sustainability Course","History, Philosophy & Religion","School of Lang, Cult and Soc","School of Lang, Cult and Soc","ES","Undergraduate","ES 460","ETHNICITY AND SOCIAL JUSTICE","2010-11-29","Change Course","College of Liberal Arts",null," 460"," 4","Undergraduate"]
[612,0,"Sustainability Content in Course","History, Philosophy & Religion","School of Lang, Cult and Soc","School of Lang, Cult and Soc","ES","Undergraduate","ES 373","APPROACHES TO SOCIAL JUSTICE","2013-11-13","New Course","College of Liberal Arts",null," 373"," 3","Undergraduate"]
[166,0,"Sustainability Content in Course","History, Philosophy & Religion","School of Lang, Cult and Soc","School of Lang, Cult and Soc","ES","Undergraduate","ES 233","*AS AM ST II: ACTIVISM & EMPWR","2010-07-21","Change Course","College of Liberal Arts",null," 233"," 2","Undergraduate"]
[797,0,"Sustainability Course","Chemical, Biological and Environmental Engineering","School of Chem, Bio, Enviro En","School of Chem, Bio, Enviro En","ENVE","Undergraduate","ENVE 490","ENVIRONMENTAL ENGINEERING DESIGN","2012-06-27","New Course","College of Engineering",null," 490"," 4","Undergraduate"]
[708,0,"Sustainability Content in Course","Chemical, Biological and Environmental Engineering","School of Chem, Bio, Enviro En","School of Chem, Bio, Enviro En","ENVE","Undergraduate","ENVE 415","ENVIRONMENTAL ENGINEERING LABORATORY","2011-02-17","New Course","College of Engineering",null," 415"," 4","Undergraduate"]
[710,0,"Sustainability Content in Course","Botany and Plant Pathology","Entomology","Entomology","ENT","Undergraduate","ENT 322","HONEY BEE BIOLOGY AND BEEKEEPING","2012-04-04","New Course","College of Agricultural Sciences",null," 322"," 3","Undergraduate"]
[800,0,"Sustainability Content in Course","Botany and Plant Pathology","Entomology","Entomology","ENT","Undergraduate","ENT 320","FUNDAMENTALS OF INSECT SCIENCE","2012-07-25","New Course","College of Agricultural Sciences",null,{"$f":"RIGHT(I194,4)","v":" 320"},{"$f":"LEFT(O194,2)","v":" 3"},{"$f":"IF(LEFT(P194,1)=\"/\", \"Both\",IF(VALUE(RIGHT(P194,1))>4,\"Graduate\",\"Undergraduate\"))","v":"Undergraduate"}]
[572,0,"Sustainability Course","Mechanical, Industrial and Manufacturing Engineering","Engineering Science","Engineering Science","ENGR","Undergraduate","ENGR 363","ENERGY MATTERS","2012-03-20","New Course","College of Engineering",null," 363"," 3","Undergraduate"]
[673,0,"Sustainability Content in Course","Public Policy","School of Public Policy","School of Public Policy","ECON","Undergraduate","ECON 480","LABOR ECONOMICS","2011-03-10","Change Course","College of Liberal Arts",null," 480"," 4","Undergraduate"]
[616,0,"Sustainability Content in Course","Public Policy","School of Public Policy","School of Public Policy","ECON","Undergraduate","ECON 439","^PUBLIC POLICY ANALYSIS","2011-03-10","Change Course","College of Liberal Arts",null," 439"," 4","Undergraduate"]
[338,0,"Sustainability Course","Crop and Soil Science","Crop & Soil Science","Crop & Soil Science","CSS","Undergraduate","CSS 435","ENVIRONMENTAL SOIL PHYSICS","2012-03-28","New Course","College of Agricultural Sciences",null," 435"," 4","Undergraduate"]
[287,0,"Sustainability Course","Crop and Soil Science","Crop & Soil Science","Crop & Soil Science","CSS","Undergraduate","CSS 335","*INTRO TO WATER SCI & POLICY","2012-07-31","Change Course","College of Agricultural Sciences",null," 335"," 3","Undergraduate"]
[440,0,"Sustainability Content in Course","Crop and Soil Science","Crop & Soil Science","Crop & Soil Science","CSS","Undergraduate","CSS 305","PRINCIPLES OF SOIL SCIENCE","2012-03-14","Change Course","College of Agricultural Sciences",null," 305"," 3","Undergraduate"]
[410,0,"Sustainability Course","Crop and Soil Science","Crop & Soil Science","Crop & Soil Science","CSS","Undergraduate","CSS 205","SOIL SCIENCE","2011-12-15","Change Course","College of Agricultural Sciences",null," 205"," 2","Undergraduate"]
[306,0,"Sustainability Content in Course","Crop and Soil Science","Crop & Soil Science","Crop & Soil Science","CROP","Undergraduate","CROP 300","CROP PRODUCTION IN PACIFIC NORTHWEST AGROECOSYSTEMS","2012-09-19","Change Course","College of Agricultural Sciences",null," 300"," 3","Undergraduate"]
[184,0,"Sustainability Content in Course","Chemical, Biological and Environmental Engineering","School of Chem, Bio, Enviro En","School of Chem, Bio, Enviro En","CHE","Undergraduate","CHE 320","SAFETY, ENGINEERING ETHICS AND PROFESSIONALISM","2012-05-23","New Course","College of Engineering",null," 320"," 3","Undergraduate"]
[631,0,"Sustainability Content in Course","Chemistry","Chemistry","Chemistry","CH","Undergraduate","CH 390","ENVIRONMENTAL CHEMISTRY","2010-07-20","Change Course","College of Science",null," 390"," 3","Undergraduate"]
[500,0,"Sustainability Content in Course","Agricultural Education and Agricultural Sciences","Bioresource Research","Bioresource Research","BRR","Undergraduate","BRR 450","INTERDISCIPLINARY RESEARCH: BIOENERGY FOCUS","2013-09-14","New Course","College of Agricultural Sciences",null," 450"," 4","Undergraduate"]
[659,0,"Sustainability Course","Agricultural Education and Agricultural Sciences","Bioresource Research","Bioresource Research","BRR","Undergraduate","BRR 350","INTRODUCTION TO REGIONAL BIOENERGY","2013-09-14","New Course","College of Agricultural Sciences",null," 350"," 3","Undergraduate"]
[25,0,"Sustainability Content in Course","Microbiology","Biology","Biology","BI","Undergraduate","BI 450","MARINE BIOLOGY","2012-10-19","Change Course","College of Science",null," 450"," 4","Undergraduate"]
[703,0,"Sustainability Content in Course","Microbiology","Biology","Biology","BI","Undergraduate","BI 349"," *BIODIVERSITY: CAUSES, CONSERV","2010-10-28","Change Course","College of Science",null," 349"," 3","Undergraduate"]
[561,0,"Sustainability Course","EOAS","Oceanography","Oceanography","ATS","Undergraduate","ATS 320","THE CHANGING CLIMATE","2012-06-01","Change Course","College of Earth, Ocean and Atmospheric Sciences",null," 320"," 3","Undergraduate"]
[276,0,"Sustainability Content in Course","Agricultural and Resource Economics","Applied Economics","Applied Economics","AREC","Undergraduate","AREC 461","^AGRI & FOOD POLICY ISSUES","2013-04-15","Change Course","College of Agricultural Sciences",null," 461"," 4","Undergraduate"]
[886,0,"Sustainability Course","Agricultural and Resource Economics","Applied Economics","Applied Economics","AREC","Undergraduate","AREC 458","ECONOMICS OF SUSTAINABLE GROWTH AND DEVELOPMENT","2011-08-16","New Course","College of Agricultural Sciences",null," 458"," 4","Undergraduate"]
[292,0,"Sustainability Course","Agricultural and Resource Economics","Applied Economics","Applied Economics","AREC","Undergraduate","AREC 457","ECONOMICS AND GLOBAL CLIMATE CHANGE","2011-09-13","New Course","College of Agricultural Sciences",null," 457"," 4","Undergraduate"]
[665,0,"Sustainability Content in Course","Agricultural and Resource Economics","Applied Economics","Applied Economics","AREC","Undergraduate","AREC 450","VALUING ECOSYSTEM SERVICES","2011-08-16","New Course","College of Agricultural Sciences",null," 450"," 4","Undergraduate"]
[935,0,"Sustainability Course","Agricultural and Resource Economics","Applied Economics","Applied Economics","AREC","Undergraduate","AREC 449","RENEWABLE ENERGY ALTERNATIVES: ECONOMICS AND TECHNOLOGY","2012-01-04","New Course","College of Agricultural Sciences",null," 449"," 4","Undergraduate"]
[921,0,"Sustainability Content in Course","Agricultural and Resource Economics","Applied Economics","Applied Economics","AREC","Undergraduate","AREC 448","ADVANCED READINGS IN ENVIRONMENTAL ECONOMICS AND POLICY","2011-10-03","New Course","College of Agricultural Sciences",null," 448"," 4","Undergraduate"]
[279,0,"Sustainability Content in Course","Agricultural and Resource Economics","Applied Economics","Applied Economics","AREC","Undergraduate","AREC 434","^ MEASURING RESOURCE AND ENVIRONMENTAL IMPACTS","2012-11-01","Change Course","College of Agricultural Sciences",null," 434"," 4","Undergraduate"]
[460,0,"Sustainability Course","Agricultural and Resource Economics","Applied Economics","Applied Economics","AREC","Undergraduate","AREC 352","*ENVIRONMENTAL ECONOMICS AND POLICY","2013-03-21","Change Course","College of Agricultural Sciences",null," 352"," 3","Undergraduate"]
[851,0,"Sustainability Content in Course","Agricultural and Resource Economics","Applied Economics","Applied Economics","AREC","Undergraduate","AREC 313","WELFARE ECONOMICS & RESOURCE POLICY","2010-11-12","New Course","College of Agricultural Sciences",null," 313"," 3","Undergraduate"]
[169,0,"Sustainability Course","Agricultural and Resource Economics","Applied Economics","Applied Economics","AREC","Undergraduate","AREC 250","*INTRODUCTION TO ENVIRONMENTAL ECONOMICS AND POLICY","2012-11-15","Change Course","College of Agricultural Sciences",null," 250"," 2","Undergraduate"]
[506,0,"Sustainability Content in Course","Agricultural and Resource Economics","Applied Economics","Applied Economics","AREC","Undergraduate","AREC 240","RURAL ECONOMICS OF PLACE AND PEOPLE","2013-10-24","New Course","College of Agricultural Sciences",null," 240"," 2","Undergraduate"]
[680,0,"Sustainability Content in Course","History, Philosophy & Religion","School of Lang, Cult and Soc","School of Lang, Cult and Soc","ANTH","Undergraduate","ANTH 473","GENDER, ETHNICITY, CULTURE","2013-08-12","Change Course","College of Liberal Arts",null," 473"," 4","Undergraduate"]
[135,0,"Sustainability Course","History, Philosophy & Religion","School of Lang, Cult and Soc","School of Lang, Cult and Soc","ANTH","Undergraduate","ANTH 361","FOOD STUDIES IN A SOCIAL JUSTICE PERSPECTIVE","2012-01-09","New Course","College of Liberal Arts",null," 361"," 3","Undergraduate"]
[10,0,"Sustainability Course","History, Philosophy & Religion","School of Lang, Cult and Soc","School of Lang, Cult and Soc","ANTH","Undergraduate","ANTH 352","ANTHROPOLOGY, HEALTH, AND ENVIRONMENT","2011-02-09","New Course","College of Liberal Arts",null," 352"," 3","Undergraduate"]
[605,0,"Sustainability Course","Wood Science and Engineering","Wood Science and Engineering","Wood Science and Engineering","WSE","Graduate","WSE 582","WS 482/WS 582 GLOBAL PERSPECTIVES ON WOMEN'S HEALTH","2012-07-06","Change Course","Winter 2013",null," 582"," 5","Graduate",{"$f":"LEFT(I224,LEN(I224)-7)&RIGHT(I224,3)","v":"582"},"WSE 582"]
[244,0,"Sustainability Course","Wood Science and Engineering","Wood Science and Engineering","Wood Science and Engineering","WSE","Graduate","WSE 575","WSE 475/WSE 575 ENVIRO ASSESS BUILD MATERIALS","2012-11-30","Change Course","Winter 2013",null," 575"," 5","Graduate",{"$f":"LEFT(I225,LEN(I225)-7)&RIGHT(I225,3)","v":"575"},"WSE 575"]
[447,0,"Sustainability Course","Wood Science and Engineering","Wood Science and Engineering","Wood Science and Engineering","WSE","Graduate","WSE 573","WSE 473/WSE 573 BIOENERGY AND ENVIRONMENT IMPACT","2012-08-08","Change Course","Spring 2013",null," 573"," 5","Graduate","573","WSE 573"]
[545,0,"Sustainability Course","Wood Science and Engineering","Wood Science and Engineering","Wood Science and Engineering","WSE","Graduate","WSE 562","WSE 462/WSE 562 MFG WITH RENEW MATLS II","2012-04-26","Change Course","Fall 2012",null," 562"," 5","Graduate","562","WSE 562"]
[207,0,"Sustainability Course","Wood Science and Engineering","Wood Science and Engineering","Wood Science and Engineering","WSE","Graduate","WSE 553","WSE 453/WSE 553 GLOBAL TRADE IN RENEWABLE MATERIALS","2013-05-13","Change Course","Fall 2013",null," 553"," 5","Graduate","553","WSE 553"]
[160,0,"Sustainability Course","Wood Science and Engineering","Wood Science and Engineering","Wood Science and Engineering","WSE","Graduate","WSE 515","WSE 415/515 RENEWABLE MATERIALS IN THE MODERN AGE","2013-03-20","New Course","Fall 2013",null," 515"," 5","Graduate","515","WSE 515"]
[379,0,"Sustainability Content in Course","Language, Culture & Society",null,"School of Lang, Cult and Soc","WS","Graduate","WS 596","WS 496/WS 596 FEMINIST THEOLOGIES IN THE UNITED STATES","2012-08-08","New Course","Spring 2013",null," 596"," 5","Graduate",{"$error":"#VALUE!"},"WS 596"]
[439,0,"Sustainability Content in Course","Language, Culture & Society",null,"School of Lang, Cult and Soc","WS","Graduate","WS 595","WS 495/WS 595 GLOBAL FEMINIST THEOLOGIES","2012-06-21","Change Course","Fall 2012",null," 595"," 5","Graduate",{"$error":"#VALUE!"},"WS 595"]
[557,0,"Sustainability Content in Course","Language, Culture & Society",null,"School of Lang, Cult and Soc","WS","Graduate","WS 587","WS 487/WS 587 GLOBAL EXPERIENCE II","2011-06-10","New Course","Fall 2011",null," 587"," 5","Graduate",{"$error":"#VALUE!"},"WS 587"]
[558,0,"Sustainability Content in Course","Language, Culture & Society",null,"School of Lang, Cult and Soc","WS","Graduate","WS 586","WS 486/WS 586 GLOBAL EXPERIENCE I","2011-06-10","New Course","Fall 2011",null," 586"," 5","Graduate",{"$error":"#VALUE!"},"WS 586"]
[255,0,"Sustainability Content in Course","History, Philosophy & Religion","School of Hist, Phil, and Rel.","School of Hist, Phil, and Rel.","HSTS","Graduate","WS 566","FAT STUDIES","2012-10-30","Change Course","College of Liberal Arts",null," 566"," 5","Graduate",{"$error":"#VALUE!"},"WS 566"]
[606,0,"Sustainability Course","Language, Culture & Society",null,"School of Lang, Cult and Soc","WS","Graduate","WS 566","WS 466/WS 566 FAT STUDIES","2010-11-08","New Course","Spring 2011",null," 566"," 5","Graduate",{"$error":"#VALUE!"},"WS 566"]
[589,0,"Sustainability Course","Language, Culture & Society",null,"School of Lang, Cult and Soc","WS","Graduate","WS 562","WS 462/WS 562 INTRODUCTION TO QUEER STUDIES","2011-12-01","New Course","Fall 2011",null," 562"," 5","Graduate",{"$error":"#VALUE!"},"WS 562"]
[669,0,"Sustainability Content in Course","Language, Culture & Society","School of Lang, Cult and Soc","School of Lang, Cult and Soc","SPAN","Graduate","SPAN 535","SPAN 435/535 SELECTED TOPICS IN LATIN AMERICAN CULTURE","2010-04-21","New Course","Summer 2010",null," 535"," 5","Graduate","S535","SPAN 535"]
[871,0,"Sustainability Content in Course","History, Philosophy & Religion","School of Public Policy","School of Public Policy","SOC","Graduate","SOC 560","SOC 460/SOC 560 THE SOCIOLOGY OF GLOBALIZATION","2010-11-05","Change Course","Winter 2011",null," 560"," 5","Graduate","560","SOC 560"]
[48,0,"Sustainability Content in Course","Agricultural Education and Agricultural Sciences","Applied Economics","Applied Economics","RS","Graduate","RS 521","RS 421/RS 521 ECONOMICS OF RURAL POVERTY AND THE U.S. SOCIAL SAFETY NET","2013-09-10","Change Course","Spring 2014",null," 521"," 5","Graduate",{"$error":"#VALUE!"},"RS 521"]
[310,0,"Sustainability Content in Course","Language, Culture & Society","School of Lang, Cult and Soc","School of Lang, Cult and Soc","QS","Graduate","QS 599","SPECIAL TOPICS IN QUEER STUDIES","2012-12-01","New Course","College of Liberal Arts",null," 599"," 5","Graduate",{"$error":"#VALUE!"},"QS 599"]
[38,0,"Sustainability Content in Course","Language, Culture & Society","School of Lang, Cult and Soc","School of Lang, Cult and Soc","QS","Graduate","QS 573","QS 473/QS 573 TRANSGENDER LIVES","2013-09-09","New Course","Winter 2014",null," 573"," 5","Graduate",{"$error":"#VALUE!"},"QS 573"]
[207,0,"Sustainability Content in Course","Language, Culture & Society","School of Lang, Cult and Soc","School of Lang, Cult and Soc","QS","Graduate","QS 572","QS 472/QS 572 INDIGENOUS TWO-SPIRIT AND QUEER STUDIES","2013-06-25","New Course","Winter 2014",null," 572"," 5","Graduate",{"$error":"#VALUE!"},"QS 572"]
[15,0,"Sustainability Course","Language, Culture & Society","School of Lang, Cult and Soc","School of Lang, Cult and Soc","QS","Graduate","QS 562","QS 462/QS 562 QUEER THEORIES","2013-11-26","Change Course","Winter 2014",null," 562"," 5","Graduate",{"$error":"#VALUE!"},"QS 562"]
[204,0,"Sustainability Content in Course","Language, Culture & Society","School of Lang, Cult and Soc","School of Lang, Cult and Soc","QS","Graduate","QS 531","QS 431/QS 531 QUEER OF COLOR CRITIQUES","2013-05-15","New Course","Winter 2014",null," 531"," 5","Graduate",{"$error":"#VALUE!"},"QS 531"]
[192,0,"Sustainability Course","History, Philosophy & Religion","School of Psy Sci","School of Psy Sci","PSY","Graduate","PSY 566","PSY 466/PSY 566 FAT STUDIES","2012-12-06","New Course","Spring 2013",null," 566"," 5","Graduate","566","PSY 566"]
[641,0,"Sustainability Content in Course","History, Philosophy & Religion","School of Psy Sci","School of Psy Sci","PSY","Graduate","PSY 526","PSY 426/PSY 526 PSYCHOLOGY OF GENDER","2012-02-01","Change Course","Spring 2012",null," 526"," 5","Graduate","526","PSY 526"]
[378,0,"Sustainability Content in Course","Public Policy","School of Public Policy","School of Public Policy","PS","Graduate","PS 573","PS 473/PS 573 US ENERGY POLICY","2012-11-01","New Course","Winter 2013",null," 573"," 5","Graduate",{"$error":"#VALUE!"},"PS 573"]
[199,0,"Sustainability Content in Course","Public Policy","School of Public Policy","School of Public Policy","PS","Graduate","PS 573","US ENERGY POLICY","2012-11-01","New Course","College of Liberal Arts",null," 573"," 5","Graduate",{"$error":"#VALUE!"},"PS 573"]
[408,0,"Sustainability Course","Public Policy","School of Public Policy","School of Public Policy","PS","Graduate","PS 555","PS 455/PS 555 THE POLITICS OF CLIMATE CHANGE","2012-04-25","New Course","Fall 2012",null," 555"," 5","Graduate",{"$error":"#VALUE!"},"PS 555"]
[399,0,"Sustainability Content in Course","Public Policy","School of Public Policy","School of Public Policy","PS","Graduate","PS 555","THE POLITICS OF CLIMATE CHANGE","2012-04-25","New Course","College of Liberal Arts",null," 555"," 5","Graduate",{"$error":"#VALUE!"},"PS 555"]
[377,0,"Sustainability Content in Course","Forest Ecosystems and Society","Natural Resources","Natural Resources","NR","Graduate","NR 577","AGROFORESTRY","2011-05-12","New Course","College of Forestry",null," 577"," 5","Graduate",{"$error":"#VALUE!"},"NR 577"]
[99,0,"Sustainability Content in Course","Mechanical, Industrial and Manufacturing Engineering","School of Mech, Ind, Manf Engr","School of Mech, Ind, Manf Engr","MFGE","Graduate","MFGE 538","COMPOSITES MANUFACTURING","2012-06-01","New Course","College of Engineering",null," 538"," 5","Graduate","M538","MFGE 538"]
[100,0,"Sustainability Content in Course","Mechanical, Industrial and Manufacturing Engineering","School of Mech, Ind, Manf Engr","School of Mech, Ind, Manf Engr","MFGE","Graduate","MFGE 536","LEAN MANUFACTURING SYSTEMS ENGINEERING","2012-08-21","Change Course","College of Engineering",null," 536"," 5","Graduate","M536","MFGE 536"]
[8,0,"Sustainability Course","History, Philosophy & Religion","School of Hist, Phil, and Rel.","School of Hist, Phil, and Rel.","HSTS","Graduate","HSTS 537","HISTORY OF ANIMALS IN SCIENCE","2010-08-11","New Course","College of Liberal Arts",null," 537"," 5","Graduate","H537","HSTS 537"]
[443,0,"Sustainability Content in Course","Horticulture","Horticulture","Horticulture","HORT","Graduate","HORT 555","URBAN FOREST PLANNING, POLICY AND MANAGEMENT","2012-06-26","Change Course","College of Agricultural Sciences",null," 555"," 5","Graduate","H555","HORT 555"]
[158,0,"Sustainability Content in Course","Horticulture","Horticulture","Horticulture","HORT","Graduate","HORT 547","ARBORICULTURE","2013-09-04","Change Course","College of Agricultural Sciences",null," 547"," 5","Graduate","H547","HORT 547"]
[894,0,"Sustainability Course","Social and Behavioral Health Sciences","School Soc. & Behav. Science","School Soc. & Behav. Science","H","Graduate","H 548","ENVIRONMENTAL & OCCUPATIONAL TOXICOLOGY & RISK ASSESSMENT","2012-08-22","Change Course","College of Public Health and Human Sciences",null," 548"," 5","Graduate",{"$error":"#VALUE!"},"H 548"]
[60,0,"Sustainability Content in Course","Forest Engineering, Resources & Management","Forest Resources","Forest Resources","FOR","Graduate","FOR 555","URBAN FOREST PLANNING, POLICY AND MANAGEMENT","2012-09-05","Change Course","College of Forestry",null,{"$f":"RIGHT(I258,4)","v":" 555"},{"$f":"LEFT(O258,2)","v":" 5"},{"$f":"IF(LEFT(P258,1)=\"/\", \"Both\",IF(VALUE(RIGHT(P258,1))>4,\"Graduate\",\"Undergraduate\"))","v":"Graduate"},"555","FOR 555"]
[265,0,"Sustainability Content in Course","Forest Ecosystems and Society","Forest Ecosystems & Society","Forest Ecosystems & Society","FES","Undergraduate","FES 485","CONSENSUS AND NATURAL RESOURCES","2013-11-18","Change Course","College of Forestry",null," 485"," 4","Undergraduate","485","FES 485"]
[190,0,"Sustainability Content in Course","Forest Engineering, Resources & Management","Forest Engr, Resources & Mgmt","Forest Engr, Resources & Mgmt","FE","Graduate","FE 560","FOREST OPERATIONS REGULATIONS AND POLICY ISSUES","2013-06-19","Change Course","College of Forestry",null," 560"," 5","Graduate",{"$error":"#VALUE!"},"FE 560"]
[456,0,"Sustainability Content in Course","History, Philosophy & Religion","School of Lang, Cult and Soc","School of Lang, Cult and Soc","ES","Graduate","ES 572","ES 472/ES 572 INDIGENOUS TWO-SPIRIT AND QUEER STUDIES","2013-08-09","New Course","College of Liberal Arts",null," 572"," 5","Graduate",{"$error":"#VALUE!"},"ES 572"]
[438,0,"Sustainability Content in Course","History, Philosophy & Religion","School of Lang, Cult and Soc","School of Lang, Cult and Soc","ES","Graduate","ES 531","QUEER OF COLOR CRITIQUES","2013-07-19","New Course","College of Liberal Arts",null," 531"," 5","Graduate",{"$error":"#VALUE!"},"ES 531"]
[799,0,"Sustainability Content in Course","Botany and Plant Pathology","Entomology","Entomology","ENT","Graduate","ENT 540","ISSUES IN INSECT TOXICOLOGY","2012-07-27","New Course","College of Agricultural Sciences",null," 540"," 5","Graduate","540","ENT 540"]
[674,0,"Sustainability Course","Public Policy","School of Public Policy","School of Public Policy","ECON","Graduate","ECON 566","ENERGY ECONOMICS","2012-05-23","New Course","College of Liberal Arts",null," 566"," 5","Graduate","E566","ECON 566"]
[139,0,"Sustainability Course","Public Policy","School of Public Policy","School of Public Policy","ECON","Graduate","ECON 540","ECONOMICS OF GLOBALIZATION","2010-07-19","Change Course","College of Liberal Arts",null," 540"," 5","Graduate","E540","ECON 540"]
[316,0,"Sustainability Course","Design and Human Environment ","School of Design and Hum Env","School of Design and Hum Env","DHE","Graduate","DHE 515","RENEWABLE MATERIALS IN THE MODERN AGE","2013-05-31","New Course","College of Business",null," 515"," 5","Graduate","515","DHE 515"]
[548,0,"Sustainability Content in Course","Chemical, Biological and Environmental Engineering","School of Chem, Bio, Enviro En","School of Chem, Bio, Enviro En","CHE","Undergraduate","CHE 451","SOLAR ENERGY TECHNOLOGIES","2011-05-05","New Course","College of Engineering",null," 451"," 4","Undergraduate","451","CHE 451"]
[335,0,"Sustainability Course","Chemical, Biological and Environmental Engineering","School of Chem, Bio, Enviro En","School of Chem, Bio, Enviro En","CHE","Graduate","CHE 550","CONVENTIONAL AND ALTERNATIVE ENERGY SYSTEMS","2012-01-24","New Course","College of Engineering",null," 550"," 5","Graduate","550","CHE 550"]
[23,0,"Sustainability Content in Course","Biological & Ecological Engineering","School of Chem, Bio, Enviro En","School of Chem, Bio, Enviro En","BIOE","Graduate","BIOE 520","SOCIAL JUSTICE, ETHICS, AND ENGINEERING","2012-07-03","Change Course","College of Engineering",null," 520"," 5","Graduate","B520","BIOE 520"]
[119,0,"Sustainability Course","Biological & Ecological Engineering","Biological & Ecological Engr","Biological & Ecological Engr","BEE","Graduate","BEE 511","GLOBAL ENVIRONMENTAL CHANGE: USING DATA TO INFORM DECISIONS","2013-05-02","New Course","College of Engineering",null," 511"," 5","Graduate","511","BEE 511"]
[421,0,"Sustainability Content in Course","Business ","Business Administration","Business Administration","BA","Graduate","BA 532","ENVIRONMENTAL LAW AND BUSINESS","2012-11-05","New Course","College of Business",null," 532"," 5","Graduate",{"$error":"#VALUE!"},"BA 532"]
[560,0,"Sustainability Content in Course","EOAS","Oceanography","Oceanography","ATS","Graduate","ATS 521","CLIMATE MODELING","2012-07-24","New Course","College of Earth, Ocean and Atmospheric Sciences",null," 521"," 5","Graduate","521","ATS 521"]
[765,0,"Sustainability Content in Course","Agricultural and Resource Economics","Applied Economics","Applied Economics","AREC","Graduate","AREC 562","THE ECONOMIC HISTORY OF AMERICAN AGRICULTURE","2013-05-28","New Course","College of Agricultural Sciences",null," 562"," 5","Graduate","A562","AREC 562"]
[274,0,"Sustainability Course","Agricultural and Resource Economics","Applied Economics","Applied Economics","AREC","Graduate","AREC 556","ECONOMICS OF WATER CONSERVATION","2011-08-29","New Course","College of Agricultural Sciences",null," 556"," 5","Graduate","A556","AREC 556"]
[497,0,"Sustainability Content in Course","Agricultural and Resource Economics","Applied Economics","Applied Economics","AREC","Graduate","AREC 552","MARINE ECONOMICS","2011-01-05","New Course","College of Agricultural Sciences",null," 552"," 5","Graduate","A552","AREC 552"]
[34,0,"Sustainability Content in Course","Agricultural and Resource Economics","Applied Economics","Applied Economics","AREC","Graduate","AREC 521","ECONOMICS OF RURAL POVERTY AND THE U.S. SOCIAL SAFETY NET","2013-08-15","New Course","College of Agricultural Sciences",null," 521"," 5","Graduate","A521","AREC 521"]
[637,0,"Sustainability Content in Course","History, Philosophy & Religion","School of Lang, Cult and Soc","School of Lang, Cult and Soc","ANTH","Graduate","ANTH 566","RURAL ANTHROPOLOGY","2010-06-24","New Course","College of Liberal Arts",null," 566"," 5","Graduate","A566","ANTH 566"]